Cogmind - Beta 11 *** ADVENTURER MODE // 2022.04.19 @ 18:16:11 Player: Fgdfgfthgr Result: Self-destructed Performance ------------- Evolutions (9) 4500 Regions Visited (38) 7600 Robots Destroyed (586) 2930 Value Destroyed (28068) 28068 Prototype IDs (89) 1780 Alien Tech Used (0) 0 Bonus (16619) 16619 TOTAL SCORE: 61497 Bonus ------- Triggered Max Security 1000 High Alert Combat Kills 3120 Follower Combat Kills 5806 Entered Garrisons 2000 Used RIF Installer 5000 Network Hubs Disabled 400 Aligned with FarCom 300 Met Data Miner 300 Built Enhanced Grunts 300 Met R17 at Cetus 500 Met R17 at Research 2000 Friendly Fire -4107 Cogmind --------- Core Integrity 1286/1600 Matter 295/300 Energy 400/400 System Corruption 10% Temperature Cool (0) Movement Rolling (130) Ox2 Location -1/Access Parts ------- > --- POWER (2) -------- Micro Antimatter Reactor Quantum Reactor > --- PROPULSION (4) --- Centrium Wheel Centrium Wheel Centrium Wheel > --- UTILITY (17) ----- Experimental Power Amplifier Experimental Cooling System Huge Storage Unit Machine Analyzer Enhanced Optical Array Advanced Targeting Computer Experimental Core Analyzer Advanced Weapon Cycler Centrium Light Armor Plating Light Regenerative Plating Graphene Brace Relay Coupler [ARC] (9) Relay Coupler [Grunt] (1) Relay Coupler [Brawler] (33) Relay Coupler [Sentry] (7) Relay Coupler [Specialist] (15) > --- WEAPON (2) ------- Enhanced Nova Cannon Advanced Remote Datajack > --- INVENTORY (25) --- Quantum Reactor Advanced Heat Sink Triangulator Precision Energy Filter Particle Accelerator Advanced Phase Shifter Centrium Medium Armor Plating Centrium Medium Armor Plating Experimental Thermal Shield Advanced Force Field Antimissile System Relay Coupler [NC] (44) Relay Coupler [Swarmer] (41) Relay Coupler [Grunt] (33) Relay Coupler [Sentry] (27) Relay Coupler [Demolisher] (22) Relay Coupler [Demolisher] (24) Gamma Rifle Heavy Dispersion Rifle Compact HERF Cannon Enhanced Nova Cannon Enhanced Gamma Bomb Array Fusion Bomb Launcher Peak State ------------ > --- POWER ------------ Light Quantum Reactor Light Quantum Reactor > --- PROPULSION ------- Centrium Wheel Centrium Wheel Centrium Wheel Centrium Wheel > --- UTILITY ---------- Experimental Power Amplifier Experimental Cooling System Huge Storage Unit Machine Analyzer Triangulator Advanced Targeting Computer Experimental Core Analyzer Particle Accelerator Advanced Weapon Cycler Cloak of Protection Centrium Medium Armor Plating Light Regenerative Plating Experimental Thermal Shield Advanced Force Field Relay Coupler [NC] Relay Coupler [Sentry] Relay Coupler [Hunter] > --- WEAPON ----------- Enhanced Nova Cannon Advanced Remote Datajack > --- INVENTORY -------- Quantum Reactor Quantum Reactor Centrium Wheel Experimental Cooling System Precision Energy Filter Advanced Phase Shifter Centrium Light Armor Plating Centrium Medium Armor Plating Graphene Brace Antimissile System Relay Coupler [NC] Relay Coupler [Swarmer] Relay Coupler [Sentry] Relay Coupler [Sentry] Relay Coupler [Specialist] Relay Coupler [Hunter] Relay Coupler [Hunter] Relay Coupler [Heavy] Heavy Dispersion Rifle Compact HERF Cannon Enhanced Nova Cannon Enhanced Nova Cannon Gamma Bomb Array Fusion Bomb Launcher [Rating: 184] Favorites ----------- Power Neutrino Core Engine Heavy Ion Engine Power Core Neutrino Core Reactor Quantum Reactor Propulsion Wheel Treads Light Treads Leg Flexi-carbon Leg Wheel Wheel Utility Huge Storage Unit Device Improved Cooling System Storage Huge Storage Unit Processor Advanced Targeting Computer Hackware Relay Coupler [Grunt] Protection Centrium Medium Armor Plating Weapon Advanced Beam Rifle Energy Gun Advanced Beam Rifle Energy Cannon Long-range Phase Cannon Ballistic Gun Enhanced Autogun Ballistic Cannon Enhanced Gauss Cannon Launcher Improved Grenade Launcher Special Weapon Improved Remote Datajack Impact Weapon Powered Hammer Special Melee Weapon Improved Datajack Build | -11 -10 -10 -9 -9 -9 -8 -8 -8 -8 -8 -7 -7 -7 -7 -7 -7 -6 -6 -6 -6 -6 -5 -5 -5 -5 -5 -5 -5 -5 -4 -4 -3 -3 -2 -2 -1 -1 -1 ------- Run | Scr Mat Min Mat Min Exi Min Mat Gar Mat Gar Fac Gar Fac Low Low Dat Pro Fac Gar Fac Gar Fac Gar Fac Ext Cet Arc Hub Gar Fac Gar Res Arm Res Gar Acc Gar Acc Slots Evolved 18 | . . . 2 . . . 2 . . . 2 . . . . . . 2 . . . 2 . . . . . . . 2 . 2 . 2 . 2 . . Power 1 | . . . . . . . . . . . . . . . . . . 1 . . . . . . . . . . . . . . . . . . . . Propulsion 2 | . . . . . . . 1 . . . 1 . . . . . . . . . . . . . . . . . . . . . . . . . . . Utility 15 | . . . 2 . . . 1 . . . 1 . . . . . . 1 . . . 2 . . . . . . . 2 . 2 . 2 . 2 . . Weapon . | . . . . . . . . . . . . . . . . . . . . . . . . . . . . . . . . . . . . . . . Parts Attached 635 | . 10 2 18 . 3 5 18 18 24 6 28 15 16 1 4 . 6 6 17 28 29 44 20 38 21 6 1 6 15 30 25 42 26 4 9 2 21 71 Power 42 | . 2 . 1 . . 1 1 1 1 . 2 1 1 . . . . 1 . 3 1 1 3 1 3 . . . 1 2 2 2 4 . . . 2 5 Engine 9 | . 2 . 1 . . . 1 1 1 . . 1 . . . . . 1 . . 1 . . . . . . . . . . . . . . . . . Core 18 | . . . . . . 1 . . . . 2 . 1 . . . . . . 3 . 1 3 1 3 . . . . 1 1 1 . . . . . . Reactor 15 | . . . . . . . . . . . . . . . . . . . . . . . . . . . . . 1 1 1 1 4 . . . 2 5 Propulsion 97 | . 4 . 3 . . 2 3 3 9 . 5 2 7 . . . . 1 5 5 6 11 4 10 7 . 1 1 1 2 1 2 . . . . . 2 Treads 10 | . . . . . . . . . . . . 1 1 . . . . . 2 . 4 2 . . . . . . . . . . . . . . . . Leg 3 | . . . . . . . . . . . . . . . . . . . 2 . 1 . . . . . . . . . . . . . . . . . Wheel 84 | . 4 . 3 . . 2 3 3 9 . 5 1 6 . . . . 1 1 5 1 9 4 10 7 . 1 1 1 2 1 2 . . . . . 2 Hover . | . . . . . . . . . . . . . . . . . . . . . . . . . . . . . . . . . . . . . . . Flight . | . . . . . . . . . . . . . . . . . . . . . . . . . . . . . . . . . . . . . . . Utility 216 | . 2 . 6 . 3 . 6 2 8 1 10 1 5 1 . . 2 3 6 9 7 15 5 12 3 3 . 1 4 14 12 21 13 4 4 2 6 25 Device 93 | . . . 3 . 2 . 2 1 4 . 4 1 1 . . . 2 . 6 4 2 6 . 6 . 1 . . 2 8 3 10 5 3 1 2 3 11 Storage 4 | . 1 . 1 . 1 . . . 1 . . . . . . . . . . . . . . . . . . . . . . . . . . . . . Processor 17 | . . . . . . . 1 1 . 1 . . . . . . . 1 . 1 . 1 . 2 . . . . . 1 . 3 3 1 . . . 1 Hackware 49 | . . . . . . . . . 1 . 3 . . 1 . . . 1 . 3 2 3 2 3 1 . . 1 1 2 4 4 . . 3 . 3 11 Protection 53 | . 1 . 2 . . . 3 . 2 . 3 . 4 . . . . 1 . 1 3 5 3 1 2 2 . . 1 3 5 4 5 . . . . 2 Artifact . | . . . . . . . . . . . . . . . . . . . . . . . . . . . . . . . . . . . . . . . Weapon 280 | . 2 2 8 . . 2 8 12 6 5 11 11 3 . 4 . 4 1 6 11 15 17 8 15 8 3 . 4 9 12 10 17 9 . 5 . 13 39 Energy Gun 29 | . . . 2 . . 1 1 5 2 1 3 2 . . . . 1 . 1 3 5 . . . . . . . . . . 2 . . . . . . Energy Cannon 82 | . . . . . . . . . . . 3 2 1 . 1 . . 1 3 1 1 4 2 3 4 . . 1 2 6 5 7 5 . 3 . 6 21 Ballistic Gun 27 | . 1 1 4 . . . 4 2 3 2 . 1 . . . . . . . 4 2 1 1 . . . . . . . . 1 . . . . . . Ballistic Cannon 28 | . . . . . . . . . . . 1 1 1 . 1 . 2 . . 1 . 4 . 5 1 2 . 1 4 1 2 1 . . . . . . Launcher 53 | . 1 1 2 . . 1 3 5 . 2 2 4 1 . . . . . 2 . 3 2 3 2 1 1 . 1 2 1 1 1 2 . 2 . 4 3 Special Weapon 56 | . . . . . . . . . . . . . . . 1 . 1 . . 2 4 6 2 5 2 . . 1 1 4 2 5 2 . . . 3 15 Impact Weapon 1 | . . . . . . . . . . . . . . . 1 . . . . . . . . . . . . . . . . . . . . . . . Slashing Weapon . | . . . . . . . . . . . . . . . . . . . . . . . . . . . . . . . . . . . . . . . Piercing Weapon . | . . . . . . . . . . . . . . . . . . . . . . . . . . . . . . . . . . . . . . . Special Melee Weapon 4 | . . . . . . . . . 1 . 2 1 . . . . . . . . . . . . . . . . . . . . . . . . . . Unidentified Prototypes 26 | . . . . . . . 2 . . . 2 . 1 . . . . 1 . . . 1 . 3 . 2 . . . 1 . 6 5 1 . . . 1 Corrupted Parts 6 | . . . . . . . . . . . . . 1 . . . . . . . 3 . . . . . . . . 2 . . . . . . . . System Corruption 31 | . . . . . . . . . . . . . 2 . . . . . . . 12 . . . . . . . . 17 . . . . . . . . Parts Lost 77 | . 1 . 4 . . . 4 10 4 1 2 6 3 . . . . 1 7 . 9 1 6 2 . . . 1 1 1 2 . . . . . 1 10 Power 8 | . . . . . . . 1 1 . . . 1 . . . . . . . . 1 . 1 . . . . . . 1 . . . . . . . 2 Propulsion 35 | . 1 . 2 . . . 1 4 3 . . 3 2 . . . . 1 4 . 5 . 4 2 . . . . 1 . . . . . . . . 2 Utility 24 | . . . 1 . . . 2 1 1 . 2 1 1 . . . . . 2 . 1 1 1 . . . . 1 . . 2 . . . . . 1 6 Weapon 10 | . . . 1 . . . . 4 . 1 . 1 . . . . . . 1 . 2 . . . . . . . . . . . . . . . . . Highest Loss Streak 8 | . 1 . 1 . . . 3 8 2 1 2 3 1 . . . . 1 2 . 6 1 6 1 . . . 1 1 1 1 . . . . . 1 2 To Critical Strikes . | . . . . . . . . . . . . . . . . . . . . . . . . . . . . . . . . . . . . . . . Average Slot Usage (%) 97 | . 97 100 99 100 99 100 97 93 97 100 98 97 97 100 100 100 100 92 93 97 93 98 99 99 98 94 94 94 92 92 92 97 99 100 100 100 99 98 Engine 3 | . 14 14 11 11 11 7 2 8 9 9 1 1 1 . . . . 6 6 3 1 5 1 . . . . . . . . . . . . . . . Core 4 | . . . . . . 3 6 . . . 5 5 5 7 7 7 7 6 6 9 10 5 8 11 11 11 11 11 5 4 6 5 1 . . . . . Reactor 1 | . . . . . . . . . . . . . . . . . . . . . . . . . . . . . 4 5 3 2 6 8 8 8 8 7 Wheel 20 | . 22 28 21 22 22 22 26 22 25 27 29 21 27 30 30 30 30 25 12 18 15 13 22 22 21 17 17 17 17 15 14 16 19 17 17 16 16 15 Device 12 | . . . 13 11 18 11 10 9 9 9 11 14 11 7 7 7 13 6 21 13 7 13 9 10 5 5 5 5 8 12 11 12 9 17 17 24 25 20 Storage 7 | . 18 14 11 11 11 22 15 9 9 9 7 7 7 7 7 7 7 6 6 6 6 5 5 5 5 5 5 5 5 5 5 4 4 4 4 4 4 4 Processor 14 | . . . . . . . 2 16 14 17 9 7 7 7 7 7 7 13 13 19 20 22 23 23 23 23 23 23 23 21 21 19 19 17 17 16 13 14 Hackware 7 | . . . . . . . . . 3 . 7 7 7 7 7 7 1 . . 1 5 2 5 9 10 11 11 11 5 9 11 17 19 17 17 16 16 19 Protection 7 | . 6 14 19 22 13 11 14 10 8 9 6 7 10 15 15 15 15 13 3 4 5 4 5 1 4 5 5 5 6 7 6 6 8 8 8 8 8 8 Energy Gun 3 | . . . 10 11 11 7 9 12 9 11 6 1 . . . . 6 3 . 3 5 2 . . . . . . . . . . . . . . . . Energy Cannon 4 | . . . . . . . . . . . 4 4 7 7 5 7 . 2 10 4 3 3 9 3 7 . . 3 4 4 5 4 8 8 7 8 5 5 Ballistic Gun 2 | . 27 27 11 11 11 11 8 1 8 5 . 1 . . . . . . . 3 2 1 . . . . . . . . . . . . . . . . Ballistic Cannon 1 | . . . . . . . . . . . 2 5 6 7 6 7 6 6 . . . 1 . 3 2 10 11 5 4 3 . . . . . . . . Naked Turns . | . . . . . . . . . . . . . . . . . . . . . . . . . . . . . . . . . . . . . . . Heaviest Build 183 | 11 55 52 99 97 104 98 100 101 106 108 109 105 108 108 108 107 110 134 134 123 120 141 137 137 135 135 135 135 144 152 145 154 156 162 175 179 183 177 Greatest Support 110 | 20 26 26 26 22 22 22 38 38 42 30 48 48 48 42 42 42 42 44 44 42 60 110 40 52 60 60 60 60 60 60 60 64 64 64 64 64 64 64 Greatest Overweight (x) 34 | . 2 1 4 4 4 4 3 4 4 3 3 3 4 2 2 2 2 3 9 10 34 3 4 3 4 2 3 2 2 2 2 2 2 2 2 2 2 3 Average Overweight (x) 2 | . . 1 3 4 4 4 2 3 2 3 2 2 2 2 2 2 2 2 6 3 2 2 3 2 2 2 2 2 2 2 1 2 2 2 2 2 2 2 Largest Inventory Capacity 25 | 8 20 20 25 25 25 25 25 25 25 25 25 25 25 25 25 25 25 25 25 25 25 25 25 25 25 25 25 25 25 25 25 25 25 25 25 25 25 25 Average Capacity 24 | 8 17 20 23 25 25 25 25 25 25 25 25 25 25 25 25 25 25 25 25 25 25 25 25 25 25 25 25 25 25 25 25 25 25 25 25 25 25 25 Most Carried 25 | 6 20 20 25 25 25 25 25 25 25 25 25 25 25 25 25 25 25 25 25 25 24 25 25 25 25 25 25 24 25 25 25 25 25 24 25 24 25 25 Average Carried 23 | 6 13 19 22 25 25 25 24 21 24 24 24 23 24 24 25 25 24 24 24 24 21 23 23 24 24 24 24 23 24 24 24 24 24 23 24 23 24 24 Final Capacity 25 | 8 20 20 25 25 25 25 25 25 25 25 25 25 25 25 25 25 25 25 25 25 25 25 25 25 25 25 25 25 25 25 25 25 25 25 25 25 25 25 Final Carried 25 | 6 20 20 25 25 25 25 25 24 25 25 25 24 25 25 25 25 25 25 24 24 21 25 25 24 25 25 24 24 25 25 25 25 25 23 25 23 25 23 Class Distribution -------------------- 25% | Bothacker-Mutant 17% | Botlord-Mutant 16% | Bothacker-Skirmisher 15% | Scavenger-Mutant 10% | Botlord-Skirmisher 6% | Mutant 3% | Hacker-Mutant 3% | Scavenger-Skirmisher Dominant Class ---------------- Mutant | -10/Materials Mutant | -10/Mines Scavenger-Mutant | -9/Materials Scavenger-Mutant | -9/Mines Scavenger-Mutant | -9/Exiles Scavenger-Mutant | -8/Mines Scavenger-Mutant | -8/Materials Scavenger-Mutant | -8/Garrison Scavenger-Mutant | -8/Materials Bothacker-Mutant | -8/Garrison Hacker-Mutant | -7/Factory Bothacker-Mutant | -7/Garrison Bothacker-Mutant | -7/Factory Bothacker-Mutant | -7/Lower Caves Bothacker-Mutant | -7/Lower Caves Bothacker-Mutant | -7/Data Miner Bothacker-Mutant | -6/Proximity Caves Bothacker-Mutant | -6/Factory Bothacker-Mutant | -6/Garrison Bothacker-Skirmisher | -6/Factory Bothacker-Skirmisher | -6/Garrison Scavenger-Skirmisher | -5/Factory Bothacker-Skirmisher | -5/Garrison Botlord-Mutant | -5/Factory Bothacker-Skirmisher | -5/Extension Bothacker-Skirmisher | -5/Cetus Bothacker-Skirmisher | -5/Archives Scavenger-Mutant | -5/Hub_04(d) Bothacker-Skirmisher | -5/Garrison Botlord-Mutant | -4/Factory Botlord-Mutant | -4/Garrison Botlord-Mutant | -3/Research Botlord-Skirmisher | -3/Armory Botlord-Skirmisher | -2/Research Botlord-Mutant | -2/Garrison Botlord-Mutant | -1/Access Botlord-Mutant | -1/Garrison Botlord-Mutant | -1/Access Resources | -11 -10 -10 -9 -9 -9 -8 -8 -8 -8 -8 -7 -7 -7 -7 -7 -7 -6 -6 -6 -6 -6 -5 -5 -5 -5 -5 -5 -5 -5 -4 -4 -3 -3 -2 -2 -1 -1 -1 ----------- Run | Scr Mat Min Mat Min Exi Min Mat Gar Mat Gar Fac Gar Fac Low Low Dat Pro Fac Gar Fac Gar Fac Gar Fac Ext Cet Arc Hub Gar Fac Gar Res Arm Res Gar Acc Gar Acc Matter Collected 13369 | 200 351 62 433 3 . 128 488 352 717 249 448 274 443 60 87 . 219 151 293 441 448 834 311 790 338 331 127 169 608 579 595 574 351 . 216 . 475 1224 Remotely . | . . . . . . . . . . . . . . . . . . . . . . . . . . . . . . . . . . . . . . . Salvage Created 24424 | . 837 105 1244 . . 312 1431 690 1869 517 958 448 644 109 108 . 263 360 982 411 775 1651 604 918 193 74 85 870 765 545 433 621 1213 . 563 . 1252 2574 Parts 1208 | . 59 8 87 . . 18 76 25 88 24 52 19 38 2 2 . 4 22 41 25 47 93 31 48 8 5 2 34 31 40 17 23 57 . 20 . 48 114 Haulers Intercepted 21 | . 2 . 3 . . . 3 . 4 . 2 . 2 . . . . . . 1 . . . . . . . 3 . . . . . . . . . 1 Recyclers Shooed 4 | . 1 . . . . . . . . . . . . . . . . . . . . 2 . . . . . . . . . . . . . . . 1 Parts Field Recycled . | . . . . . . . . . . . . . . . . . . . . . . . . . . . . . . . . . . . . . . . Retrieved Matter . | . . . . . . . . . . . . . . . . . . . . . . . . . . . . . . . . . . . . . . . Parts Self-Destructed 19 | . . . . . . . . . . . . . . . 1 . 18 . . . . . . . . . . . . . . . . . . . . . Prevented 4 | . . . . . . . . . . . . . . 2 1 . 1 . . . . . . . . . . . . . . . . . . . . . Kills | -11 -10 -10 -9 -9 -9 -8 -8 -8 -8 -8 -7 -7 -7 -7 -7 -7 -6 -6 -6 -6 -6 -5 -5 -5 -5 -5 -5 -5 -5 -4 -4 -3 -3 -2 -2 -1 -1 -1 ------- Run | Scr Mat Min Mat Min Exi Min Mat Gar Mat Gar Fac Gar Fac Low Low Dat Pro Fac Gar Fac Gar Fac Gar Fac Ext Cet Arc Hub Gar Fac Gar Res Arm Res Gar Acc Gar Acc Combat Hostiles Destroyed 435 | . 15 5 32 . . 4 25 19 25 16 14 17 8 2 2 . 5 7 23 4 20 19 18 5 3 3 . 10 26 11 9 9 18 . 10 . 23 28 Guns 121 | . 11 2 24 . . . 18 8 23 9 2 1 . . . . 3 1 2 3 8 5 . . . . . . . . . 1 . . . . . . Cannons 142 | . . . . . . . . . . . 7 7 6 2 2 . 2 6 6 1 3 8 6 5 3 3 . 4 7 7 3 3 12 . 5 . 12 22 AOE 154 | . 4 3 8 . . 4 6 11 2 7 5 9 2 . . . . . 12 . 7 5 11 . . . . 6 19 4 6 4 3 . 5 . 10 1 Classes Destroyed 21 | . 6 . 1 . . 3 2 2 . . 1 . . . . . . . 2 . 2 . . . . . . . 1 . . . . . . . . 1 Worker 47 | . 3 . 1 . . 1 2 . 10 . 5 . 5 . . . . 1 . 5 . 2 . 2 . . . 9 . . . . . . . . . 1 Builder 18 | . . . . . . . 1 . . . 1 . . . . . . . . . . 5 . 5 . . . 1 . 1 . 2 . . . . . 2 Tunneler 6 | . . . . . . 1 . . . . 1 . 1 . . . . . . . . 2 . . . . . . . 1 . . . . . . . . Hauler 21 | . 2 . 3 . . . 3 . 4 . 2 . 2 . . . . . . 1 . . . . . . . 3 . . . . . . . . . 1 Recycler 20 | . 3 . 1 . . 1 . . 2 . 2 . 1 . . . . 1 . . . 4 . 4 . . . . . . . 1 . . . . . . Operator 8 | . . . . . . . 1 . 1 . . 1 . . . . . . . . . 2 . . . . 1 2 . . . . . . . . . . Watcher 22 | . 1 . 2 . . . 4 . 1 . 3 . . . . . . 1 . 1 . 2 . . 1 . . 2 . 1 . . 2 . . . . 1 Swarmer 126 | . 6 3 11 . . . 6 4 3 6 3 8 2 . . . 1 4 4 . 8 5 9 . . 2 . 7 8 4 . 5 . . 5 . 8 4 Cutter 7 | . . . . . . . . . . . . . . . . . . . . . 1 . . . . . . . . . 2 . . . . . 4 . Saboteur 4 | . . . . . . . . . . . . . . . . . . . . . 2 . . . . . . . . . . . 2 . . . . . Grunt 166 | . 9 2 15 . . 2 14 13 12 7 4 7 5 . . . 4 . 14 . 5 2 4 2 . . . 1 13 1 4 . 5 . 3 . 8 10 Brawler 6 | . . . . . . . . 1 1 1 2 . . . . . . . 1 . . . . . . . . . . . . . . . . . . . Duelist 9 | . . . . . . 1 . . 2 1 . . . . . . . . . . . 1 . . 3 . . . . . 1 . . . . . . . Protector 1 | . . . . . . . . . . . . . . . . . . . . . . . . . . . . . 1 . . . . . . . . . Sentry 50 | . . . 6 . . . 5 . 7 . 2 2 1 1 1 . 1 . 1 1 3 3 5 . . . 1 . 1 2 . 1 3 . 2 . . 1 Demolisher 3 | . . . . . . . . 1 . . . . . . . . . . . . . . . . . . . . 1 . . 1 . . . . . . Specialist 5 | . . . . . . . . . . . . . . . . . . . 2 . . . . . . . . . . . . . 3 . . . . . Hunter 20 | . . . . . . 1 . . . 1 . . . 1 1 . . 2 . . . 2 . 1 . . . 1 2 . . 1 . . . . . 7 Programmer 38 | . . . . . . . . . . . 3 . . . . . . 1 . 3 . 6 . 2 . . . . . 5 1 . 6 . . . 4 7 Heavy 1 | . . . . . . . . . . . . . . . . . . . . . . . . . . . . . . . . . . . . . . 1 Behemoth 6 | . . . . . . . . . . . . . . . . . . . 1 . 1 . . . . . . 1 . . 1 1 . . . . 1 . Cetus Guard 1 | . . . . . . . . . . . . . . . . . . . . . . . . . . 1 . . . . . . . . . . . . Best Kill Streak 19 | . 8 3 14 . . 4 5 4 9 3 6 6 5 1 1 . 3 6 5 3 4 6 13 4 3 2 1 19 12 5 5 4 4 . 9 . 6 5 Combat Bots Only 13 | . 6 3 9 . . 3 4 4 6 3 3 6 3 1 1 . 3 4 5 1 4 5 13 3 3 2 . 3 12 4 5 4 4 . 9 . 6 4 Max Kills in Single Turn 19 | . 3 3 5 . . 2 4 4 3 2 2 2 2 1 1 . 1 1 4 2 4 3 3 1 1 1 1 19 4 4 2 3 2 . 4 . 4 2 Gunslinging 1 | . 1 . . . . . . . 1 . . . . . . . . . . . . . . . . . . . . . . . . . . . . . Exploded 5 | . 3 3 5 . . 2 3 4 2 2 2 2 2 . . . . . 4 . 4 3 3 . . . . 3 4 3 2 3 2 . 4 . 4 1 Melee . | . . . . . . . . . . . . . . . . . . . . . . . . . . . . . . . . . . . . . . . Uniques/NPCs Destroyed 1 | . . . . . . . . . . . . . . . . . . . . . . . . . . 1 . . . . . . . . . . . . A7 (-5/Cetus) Combat | -11 -10 -10 -9 -9 -9 -8 -8 -8 -8 -8 -7 -7 -7 -7 -7 -7 -6 -6 -6 -6 -6 -5 -5 -5 -5 -5 -5 -5 -5 -4 -4 -3 -3 -2 -2 -1 -1 -1 -------- Run | Scr Mat Min Mat Min Exi Min Mat Gar Mat Gar Fac Gar Fac Low Low Dat Pro Fac Gar Fac Gar Fac Gar Fac Ext Cet Arc Hub Gar Fac Gar Res Arm Res Gar Acc Gar Acc Damage Taken 15959 | . 335 98 621 . . 64 721 1094 640 241 465 681 281 108 53 . 100 382 1038 69 917 777 670 295 96 253 17 199 310 307 973 223 802 . 171 . 951 2007 Core 2258 | . 80 25 150 . . 12 79 222 133 11 56 101 43 12 9 . 22 40 113 8 163 57 123 48 . 33 . 119 29 33 143 20 60 . . . 96 218 Absorbed by Shields 1187 | . . . 86 . . . . . . . . . . . . . 36 . . . 20 . . . . 29 . . . . . . . . . . 695 321 Redirected to Shielding 203 | . . 2 29 . . 4 35 29 3 . . . 2 7 2 . . 28 62 . . . . . . . . . . . . . . . . . . . Regen/Repaired (Parts) 1010 | . . . . . . . . . . . . . 164 . . . . . . . . . . 152 . . . . . 164 . 174 73 . 12 . 92 179 Core Remaining (%) 69 | 100 . 58 . . . 59 . . . 19 . . . . . . 65 . . . 61 . . . . . . . 59 . 84 . 93 . 100 . . . Volleys Fired 1493 | . 61 9 76 . . 8 80 52 114 40 67 43 18 5 8 . 27 16 46 30 65 88 40 64 19 20 8 12 44 51 46 87 51 . 21 . 49 128 Largest 2 | . 2 2 2 . . 2 2 2 2 2 2 2 2 2 2 . 2 2 2 2 2 2 2 2 2 2 2 2 2 2 2 2 2 . 2 . 2 2 Hottest 240 | . 40 40 98 . . 79 97 130 86 101 100 117 117 117 111 . 114 143 159 113 124 133 133 159 133 114 114 155 155 188 195 210 210 . 225 . 240 240 Shots Fired 2477 | . 120 17 146 . . 16 160 93 226 74 119 62 35 10 13 . 44 30 81 49 103 158 62 78 30 39 16 19 69 68 62 97 89 . 34 . 69 189 Gun 1062 | . 118 16 139 . . 10 153 78 226 67 60 9 1 . . . 17 2 7 28 59 71 . . . . . . . . . 1 . . . . . . Cannon 1110 | . . . . . . . . . . . 54 42 32 10 12 . 24 28 64 10 32 74 44 58 23 38 16 14 52 52 38 82 84 . 30 . 54 143 Launcher 144 | . 2 1 7 . . 6 7 15 . 7 5 11 2 . . . . . 10 . 5 2 13 . . 1 . 1 15 2 11 2 3 . 4 . 8 4 Special 161 | . . . . . . . . . . . . . . . 1 . 3 . . 11 7 11 5 20 7 . . 4 2 14 13 12 2 . . . 7 42 Kinetic 818 | . 118 16 84 . . 8 73 31 114 22 19 32 16 5 7 . 24 16 3 23 17 54 . 22 2 35 16 8 26 20 2 5 . . . . . . Thermal 1086 | . . . 55 . . 2 80 47 82 15 95 4 . . . . 17 14 36 9 17 91 44 36 21 3 . 6 26 32 36 57 83 . 25 . 54 99 Explosive 117 | . 2 1 4 . . . 1 9 . 7 5 11 2 . . . . . 10 . 5 2 13 . . . . . 15 2 11 2 3 . 4 . 8 . Electromagnetic 295 | . . . 3 . . 6 6 6 30 30 . 15 17 5 5 . . . 32 6 57 . . . . 1 . 1 . . . 21 1 . 5 . . 48 Robot Hit Streak 69 | . 23 13 46 . . 17 56 69 50 25 28 18 16 7 9 . 19 13 31 11 18 31 24 13 9 14 18 12 24 16 26 38 21 . 14 . 26 47 Robot Miss Streak 4 | . 2 1 2 . . 1 2 1 4 1 2 1 1 1 1 . 1 2 1 1 3 2 2 2 1 1 3 1 2 1 1 1 2 . 1 . 2 3 Penetration Max 1 | . . . . . . . . . . . . . . . . . . . . . . 1 . . . . 1 . . . . . . . . . . . Secondary Targets 16 | . 5 . 5 . . . 2 . 2 1 . . . . . . . . . . . 1 . . . . . . . . . . . . . . . . Max Gunslinging Chain 1 | . 1 . 1 . . . 1 . 1 1 . . . . . . . . . . . 1 . . . . . . . . . . . . . . . . Shots Hit Robots 1799 | . 93 15 122 . . 8 129 78 178 50 85 42 24 7 10 . 37 20 65 38 73 124 44 58 21 33 11 14 40 43 33 45 59 . 23 . 45 132 Core Hits 953 | . 38 9 58 . . 12 56 37 64 26 45 23 19 3 3 . 13 14 39 16 37 52 33 19 6 20 7 40 47 20 36 15 33 . 22 . 34 57 Critical Kills 15 | . 2 . . . . . . . . . . . . . . . . . . . . 1 1 5 . . . . . . . 1 3 . . . 1 1 Critical Parts Destroyed 10 | . . 1 1 . . . . . . . . . . . . . . . . . . 3 . 5 . . . . . . . . . . . . . . Critical Strikes 82 | . 2 1 3 . . 1 10 3 4 1 4 2 2 . 1 . 1 1 3 . 3 7 1 10 . 3 5 1 4 1 . 3 3 . . . 1 1 Burn 31 | . . . 2 . . 1 10 3 4 1 2 . . . . . 1 . 2 . 3 2 . . . . . . . . . . . . . . . . Meltdown 8 | . . . . . . . . . . . . . . . . . . . . . . 1 1 . . . . . . . . 1 3 . . . 1 1 Destroy 17 | . 2 1 1 . . . . . . . . . . . . . . . . . . 3 . 10 . . . . . . . . . . . . . . Blast 21 | . . . . . . . . . . . 2 2 . . 1 . . 1 . . . 1 . . . 3 5 1 4 1 . . . . . . . . Corrupt 5 | . . . . . . . . . . . . . 2 . . . . . 1 . . . . . . . . . . . . 2 . . . . . . Melee Attacks 7 | . . . . . . . . . 3 . 4 . . . . . . . . . . . . . . . . . . . . . . . . . . . Impact . | . . . . . . . . . . . . . . . . . . . . . . . . . . . . . . . . . . . . . . . Slashing . | . . . . . . . . . . . . . . . . . . . . . . . . . . . . . . . . . . . . . . . Piercing . | . . . . . . . . . . . . . . . . . . . . . . . . . . . . . . . . . . . . . . . Sneak Attacks 3 | . . . . . . . . . 3 . . . . . . . . . . . . . . . . . . . . . . . . . . . . . Combat Hostiles . | . . . . . . . . . . . . . . . . . . . . . . . . . . . . . . . . . . . . . . . Follow-up Attacks . | . . . . . . . . . . . . . . . . . . . . . . . . . . . . . . . . . . . . . . . Damage Inflicted 64336 | . 1293 290 2146 . . 318 2936 2527 3166 1553 2601 2361 1099 182 286 . 854 985 3198 681 1712 3709 2205 1130 549 1182 465 3197 3804 1469 2720 1833 3566 . 2029 . 3605 4685 Guns 14295 | . 1002 144 1617 . . 71 2320 1276 3061 797 806 136 . . . . 355 20 120 484 727 1320 . . . . . . . . . 39 . . . . . . Cannons 28375 | . . . . . . . . . . . 1124 805 657 182 234 . 499 725 1658 197 471 1909 1055 1130 549 1023 463 346 1169 1118 1030 1379 2841 . 1217 . 2265 4329 Explosions 21664 | . 291 146 529 . . 247 616 1251 105 756 671 1420 442 . 52 . . 240 1420 . 514 480 1150 . . 159 . 2851 2635 351 1690 415 725 . 812 . 1340 356 Melee . | . . . . . . . . . . . . . . . . . . . . . . . . . . . . . . . . . . . . . . . Ramming 2 | . . . . . . . . . . . . . . . . . . . . . . . . . . . 2 . . . . . . . . . . . Kinetic 11964 | . 1002 144 879 . . 42 847 481 1480 252 462 622 160 77 133 . 499 274 . 432 176 1048 . 241 29 925 463 213 582 466 35 . . . . . . . Thermal 26407 | . . . 748 . . 69 1600 795 1358 264 1468 58 122 . 52 . 355 711 1265 145 365 2181 1055 889 520 98 . 175 587 652 995 710 2786 . 994 . 2265 3125 Explosive 15975 | . 291 146 434 . . . 186 785 . 722 494 1420 240 . . . . . 1279 . 429 480 1150 . . . . . 2635 351 1690 366 725 . 812 . 1340 . Electromagnetic 9988 | . . . 85 . . 207 303 466 328 315 177 261 577 105 101 . . . 654 104 742 . . . . 159 . 2809 . . . 757 55 . 223 . . 1560 Impact . | . . . . . . . . . . . . . . . . . . . . . . . . . . . . . . . . . . . . . . . Slashing . | . . . . . . . . . . . . . . . . . . . . . . . . . . . . . . . . . . . . . . . Piercing . | . . . . . . . . . . . . . . . . . . . . . . . . . . . . . . . . . . . . . . . Highest Corruption 23 | . . . . . . 1 . . . . 1 1 3 . . . 1 . . . 9 2 2 2 2 2 2 2 2 21 23 . 5 . . . 1 10 Average Corruption 4 | . . . . . . 1 . . . . 1 1 2 . . . 1 . . . 5 1 2 2 2 2 2 2 2 18 22 . 4 . . . 1 4 Corruption Purged 8 | . . . . . . . . . . . . . 3 . . . 1 . . . 4 . . . . . . . . . . . . . . . . . Corruption Blocked 8 | . . . . . . . . . . . . . . . . . . . . . . 8 . . . . . . . . . . . . . . . . Effects 254 | . . . . . . . . . . . 1 3 5 . . . 1 . . . 2 15 11 27 10 6 4 6 14 26 48 . 17 . . . 6 52 Message Errors 65 | . . . . . . . . . . . . 2 2 . . . 1 . . . . 2 2 5 3 2 1 2 2 8 11 . 7 . . . . 15 Matter Fused 59 | . . . . . . . . . . . . . 1 . . . . . . . 1 4 1 9 2 2 2 2 4 3 8 . 3 . . . 3 14 Heat Flow Errors 23 | . . . . . . . . . . . . 1 2 . . . . . . . . 1 2 1 . . . . 3 4 6 . 1 . . . . 2 Energy Discharges 33 | . . . . . . . . . . . . . . . . . . . . . 1 2 3 5 . . 1 . . . 5 . 5 . . . 3 8 Parts Rejected 4 | . . . . . . . . . . . . . . . . . . . . . . . . . . . . 1 . 1 2 . . . . . . . Data Loss (minor) 31 | . . . . . . . . . . . . . . . . . . . . . . 4 2 4 4 1 . . 4 5 3 . . . . . . 4 Data Loss (major) 17 | . . . . . . . . . . . . . . . . . . . . . . 2 . 2 1 1 . 1 1 1 3 . 1 . . . . 4 Misfires 11 | . . . . . . . . . . . 1 . . . . . . . . . . . 1 . . . . . . 1 4 . . . . . . 4 Alerts 1 | . . . . . . . . . . . . . . . . . . . . . . . . . . . . . . 1 . . . . . . . . Misdirections 3 | . . . . . . . . . . . . . . . . . . . . . . . . . . . . . . . 3 . . . . . . . Weapon Failures 7 | . . . . . . . . . . . . . . . . . . . . . . . . 1 . . . . . 2 3 . . . . . . 1 Overload Shots 12 | . . . . . . . . . . . 11 . . . . . . . . . . 1 . . . . . . . . . . . . . . . . Overflow Damage 1644 | . 16 27 16 . . . 8 30 25 12 86 137 55 . 17 . 36 49 73 . 18 163 32 32 . 12 9 40 99 22 7 132 59 . 92 . 251 89 Projectiles 922 | . . . . . . . . . . . 85 37 . . . . 36 49 . . . 106 . 32 . 12 9 9 5 22 . 105 59 . 83 . 184 89 Explosions 722 | . 16 27 16 . . . 8 30 25 12 1 100 55 . 17 . . . 73 . 18 57 32 . . . . 31 94 . 7 27 . . 9 . 67 . Melee . | . . . . . . . . . . . . . . . . . . . . . . . . . . . . . . . . . . . . . . . Knockbacks 36 | . . . . . . . . . . . 3 2 1 . . . 1 3 . 1 . 4 . 3 . 4 5 1 7 1 . . . . . . . . Impact . | . . . . . . . . . . . . . . . . . . . . . . . . . . . . . . . . . . . . . . . Kinetic 35 | . . . . . . . . . . . 3 2 1 . . . 1 3 . 1 . 4 . 3 . 4 5 1 6 1 . . . . . . . . Secondary 1 | . . . . . . . . . . . . . . . . . . . . . . . . . . . . . 1 . . . . . . . . . Self-Inflicted Damage 685 | . . . 1 . . 42 . 25 24 . 53 . 63 . . . . 33 35 . . . 55 . . . 1 . 38 . 122 36 . . 48 . 79 30 Shots 26 | . . . 1 . . 3 . 1 1 . 2 . 2 . . . . 1 2 . . . 1 . . . . . 1 . 2 1 . . 1 . 2 5 Rammed 1 | . . . . . . . . . . . . . . . . . . . . . . . . . . . 1 . . . . . . . . . . . Targets Rammed 1 | . . . . . . . . . . . . . . . . . . . . . . . . . . . 1 . . . . . . . . . . . Kicked . | . . . . . . . . . . . . . . . . . . . . . . . . . . . . . . . . . . . . . . . Crushed . | . . . . . . . . . . . . . . . . . . . . . . . . . . . . . . . . . . . . . . . Highest Temperature 472 | . 24 22 51 . . 5 124 318 35 10 . 201 242 6 . . . 53 57 5 88 87 212 120 . . . . 194 203 332 36 290 . 153 . 472 391 Average Temperature 58 | . 5 7 11 . . 5 30 93 8 5 . 36 78 6 . . . 21 20 5 21 21 43 65 . . . . 33 72 101 16 66 . 54 . 142 101 Received Heat Transfer 4155 | . 174 57 242 . . 18 423 477 450 153 168 252 150 48 18 . 6 . 294 61 288 126 135 18 18 4 . 63 45 36 148 . 36 . 9 . 37 201 Effects 11 | . . . . . . . . . . . . . . . . . . . . . . . . . . . . . . . 6 . 1 . . . 3 1 Shutdowns 1 | . . . . . . . . . . . . . . . . . . . . . . . . . . . . . . . . . . . . . . 1 Energy Bleed 2 | . . . . . . . . . . . . . . . . . . . . . . . . . . . . . . . . . 1 . . . 1 . Interference 6 | . . . . . . . . . . . . . . . . . . . . . . . . . . . . . . . 6 . . . . . . . Damage (major) 2 | . . . . . . . . . . . . . . . . . . . . . . . . . . . . . . . . . . . . . 2 . Siege Activations . | . . . . . . . . . . . . . . . . . . . . . . . . . . . . . . . . . . . . . . . Robots Corrupted 11 | . . . . . . . 1 . . . . . . . . . . . 3 . 2 . . . . . . . . . . 1 . . . . . 4 Combat Hostiles 10 | . . . . . . . 1 . . . . . . . . . . . 3 . 2 . . . . . . . . . . . . . . . . 4 Parts Fried 53 | . . . . . . . 1 1 1 1 . . 2 . 1 . . . 4 1 5 . . . . . . 18 . . . 3 . . 1 . . 14 Impact Corruptions . | . . . . . . . . . . . . . . . . . . . . . . . . . . . . . . . . . . . . . . . Robots Melted 9 | . . . . . . . . . . . . . . . . . . . . . . 2 1 . . . . . . . . 1 3 . . . 1 1 Combat Hostiles 8 | . . . . . . . . . . . . . . . . . . . . . . 1 1 . . . . . . . . 1 3 . . . 1 1 Parts Melted 69 | . . . 4 . . . 6 2 2 . 2 . . . . . 1 . . 3 1 15 3 3 2 . . . 2 . . 5 11 . . . 4 3 Heat Transferred 32981 | . . . 1937 . . 198 3604 1638 2801 531 2553 111 150 . 50 . 703 287 420 222 764 3593 1600 1300 775 150 . 250 727 557 777 679 2109 . 645 . 1271 2579 Parts Sabotaged . | . . . . . . . . . . . . . . . . . . . . . . . . . . . . . . . . . . . . . . . Parts Stolen . | . . . . . . . . . . . . . . . . . . . . . . . . . . . . . . . . . . . . . . . Parts Stripped . | . . . . . . . . . . . . . . . . . . . . . . . . . . . . . . . . . . . . . . . Power Chain Reactions 20 | . . . 1 . . 1 3 . 1 1 . . 3 . 1 . . 2 2 . 1 . . . . . . 2 . . . 1 . . . . . 1 Missiles Intercepted 11 | . . . . . . . . . . . . . . . . . . . . . . . . . . . . . 11 . . . . . . . . . Alert | -11 -10 -10 -9 -9 -9 -8 -8 -8 -8 -8 -7 -7 -7 -7 -7 -7 -6 -6 -6 -6 -6 -5 -5 -5 -5 -5 -5 -5 -5 -4 -4 -3 -3 -2 -2 -1 -1 -1 ------- Run | Scr Mat Min Mat Min Exi Min Mat Gar Mat Gar Fac Gar Fac Low Low Dat Pro Fac Gar Fac Gar Fac Gar Fac Ext Cet Arc Hub Gar Fac Gar Res Arm Res Gar Acc Gar Acc Peak Influence 1955 | . 347 166 861 136 . 125 486 832 508 575 492 633 589 . . . . 195 760 352 482 344 614 313 239 592 283 1955 1787 812 698 504 603 233 803 421 873 1630 Initial 1206 | . . 16 54 136 . . . 250 349 72 261 26 287 . . . . 55 119 345 . 219 135 278 21 116 199 82 1206 812 233 341 98 233 154 421 299 458 Average 367 | . 111 129 589 136 . 17 319 603 265 363 251 400 384 . . . . 68 597 174 356 176 487 107 93 423 274 571 1616 407 514 264 356 233 625 421 613 306 Maximum Alert Level 5 | . 1 . 3 . . . 2 3 2 2 2 2 2 . . . . . 3 1 2 1 2 1 1 2 1 5 5 3 2 2 2 1 3 2 3 5 Low Security (%) 33 | 100 82 100 7 100 . 100 15 . 33 27 34 9 . . . . . 100 10 59 15 55 6 83 80 9 2 20 . . . 29 6 . 9 . . 44 Level 1 30 | . 17 . 3 . . . 51 9 38 16 57 32 53 . . . . . 4 40 31 44 14 16 19 10 97 50 . 58 19 53 56 100 10 . 26 43 Level 2 25 | . . . 66 . . . 33 55 27 56 7 57 46 . . . . . 39 . 52 . 78 . . 79 . 11 . 39 80 16 36 . 37 100 24 5 Level 3 6 | . . . 22 . . . . 34 . . . . . . . . . . 45 . . . . . . . . . . 1 . . . . 43 . 48 . Level 4 . | . . . . . . . . . . . . . . . . . . . . . . . . . . . . . 26 . . . . . . . . . Level 5 2 | . . . . . . . . . . . . . . . . . . . . . . . . . . . . 17 73 . . . . . . . . . High Security . | . . . . . . . . . . . . . . . . . . . . . . . . . . . . . . . . . . . . . . . Max Security . | . . . . . . . . . . . . . . . . . . . . . . . . . . . . . . . . . . . . . . 6 Squads Dispatched 78 | . 4 . 5 . . . 4 . 3 . 3 . . . . . 1 3 . 2 . 12 . 3 2 . . 4 . 5 . 1 4 . . . . 22 Investigation 13 | . 4 . 1 . . . 1 . 1 . . . . . . . 1 . . . . 2 . . 1 . . 1 . . . . 1 . . . . . Extermination 18 | . . . . . . . . . . . 3 . . . . . . 1 . 2 . 2 . 2 . . . . . 2 . . 3 . . . . 3 Reinforcement 18 | . . . 3 . . . 2 . 2 . . . . . . . . 1 . . . 3 . . 1 . . . . . . 1 . . . . . 5 Assault 12 | . . . 1 . . . . . . . . . . . . . . . . . . . . . . . . . . . . . . . . . . 11 Garrison 17 | . . . . . . . 1 . . . . . . . . . . 1 . . . 5 . 1 . . . 3 . 3 . . . . . . . 3 Intercept . | . . . . . . . . . . . . . . . . . . . . . . . . . . . . . . . . . . . . . . . Searches Triggered . | . . . . . . . . . . . . . . . . . . . . . . . . . . . . . . . . . . . . . . . Data Miner Redirects 6 | . . . . . . . . . . . . . . . . . . . . . . 1 . 1 1 . . . . . . . 1 . . . . 2 Construction Impeded 4 | . . . . . . . 1 . . . . . . . . . . 1 . . . 1 . . . . . . . . . . . . . . . 1 Haulers Reinforced . | . . . . . . . . . . . . . . . . . . . . . . . . . . . . . . . . . . . . . . . Active Scanning Responses . | . . . . . . . . . . . . . . . . . . . . . . . . . . . . . . . . . . . . . . . Cargo Convoy Interrupts 1 | . . . . . . . . . . . . . . . . . . . . . . 1 . . . . . . . . . . . . . . . . Stealth | -11 -10 -10 -9 -9 -9 -8 -8 -8 -8 -8 -7 -7 -7 -7 -7 -7 -6 -6 -6 -6 -6 -5 -5 -5 -5 -5 -5 -5 -5 -4 -4 -3 -3 -2 -2 -1 -1 -1 --------- Run | Scr Mat Min Mat Min Exi Min Mat Gar Mat Gar Fac Gar Fac Low Low Dat Pro Fac Gar Fac Gar Fac Gar Fac Ext Cet Arc Hub Gar Fac Gar Res Arm Res Gar Acc Gar Acc Distress Signals 34 | . 1 . 3 . . . 6 . 3 . 1 . . . . . . 2 . 1 . 1 . 1 1 2 . 1 . 2 . 2 2 . . . . 5 Communications Jammed 107 | . . . . . . . . . . . . . . . . . . . . . . 14 . 2 . . . . . 2 . 45 28 . . . . 16 Distress Signals 105 | . . . . . . . . . . . . . . . . . . . . . . 13 . 2 . . . . . 1 . 45 28 . . . . 16 Times Spotted 717 | . 24 5 46 . . 4 40 26 32 14 30 20 7 1 3 . 14 12 25 13 31 31 14 21 27 21 10 10 10 16 20 27 34 . 19 . 35 75 Peak Tracking Total 10 | . 5 3 9 . . 3 6 6 4 3 5 6 3 1 1 . 7 4 7 3 5 6 4 3 7 7 1 2 7 3 5 4 4 . 8 . 10 10 Tactical Retreats 37 | . 1 . 2 . . . 2 3 1 2 1 5 . . . . . 1 6 . . 1 1 1 . . . . 1 . 2 . . . . . 4 3 Traps | -11 -10 -10 -9 -9 -9 -8 -8 -8 -8 -8 -7 -7 -7 -7 -7 -7 -6 -6 -6 -6 -6 -5 -5 -5 -5 -5 -5 -5 -5 -4 -4 -3 -3 -2 -2 -1 -1 -1 ------- Run | Scr Mat Min Mat Min Exi Min Mat Gar Mat Gar Fac Gar Fac Low Low Dat Pro Fac Gar Fac Gar Fac Gar Fac Ext Cet Arc Hub Gar Fac Gar Res Arm Res Gar Acc Gar Acc Traps Triggered 69 | . 3 . . . . . . 3 . 1 . 5 1 . . . . . 11 1 8 . 3 2 5 . . 1 7 1 4 . 1 . 5 . 4 3 Indirectly . | . . . . . . . . . . . . . . . . . . . . . . . . . . . . . . . . . . . . . . . Trap Hack Attempts . | . . . . . . . . . . . . . . . . . . . . . . . . . . . . . . . . . . . . . . . Triggered . | . . . . . . . . . . . . . . . . . . . . . . . . . . . . . . . . . . . . . . . Disarmed 4 | . 4 . . . . . . . . . . . . . . . . . . . . . . . . . . . . . . . . . . . . . Reprogrammed 8 | . . . . . . . . . . . . . . . . . . 4 . . . . . . . . . . . . . . 4 . . . . . Reused 1 | . . . . . . . . . . . . . . . . . . 1 . . . . . . . . . . . . . . . . . . . . Traps Extracted . | . . . . . . . . . . . . . . . . . . . . . . . . . . . . . . . . . . . . . . . Installed . | . . . . . . . . . . . . . . . . . . . . . . . . . . . . . . . . . . . . . . . Triggered 12 | . . . . . . . . 1 . . 2 1 . . 1 . 1 1 . . . 3 . . . . . . . . . . . . . . . 2 Machines | -11 -10 -10 -9 -9 -9 -8 -8 -8 -8 -8 -7 -7 -7 -7 -7 -7 -6 -6 -6 -6 -6 -5 -5 -5 -5 -5 -5 -5 -5 -4 -4 -3 -3 -2 -2 -1 -1 -1 ---------- Run | Scr Mat Min Mat Min Exi Min Mat Gar Mat Gar Fac Gar Fac Low Low Dat Pro Fac Gar Fac Gar Fac Gar Fac Ext Cet Arc Hub Gar Fac Gar Res Arm Res Gar Acc Gar Acc Machines Disabled 138 | . . . 1 . . 1 1 3 . 2 4 2 14 . . . 2 1 2 . 5 5 6 4 5 1 3 38 4 2 5 2 3 . 6 . 4 12 Max in Single Turn 35 | . . . 1 . . 1 1 1 . 1 2 1 6 . . . 1 1 1 . 2 1 1 1 1 . . 35 1 2 1 1 1 . 2 . 1 1 Garrison Access 16 | . . . . . . . . . . . 2 . . . . . . . . 1 . 1 . 3 . . . . . . . 3 . . . . . 6 Garrison Relay 24 | . . . . . . . . 2 . 2 . 2 . . . . . . 1 . 3 . 3 . . . . . 2 . 3 . . . 3 . 3 . Network Hub 2 | . . . . . . . . . . . . . . . . . . . . . . . . . . . . 2 . . . . . . . . . . Machines Sabotaged . | . . . . . . . . . . . . . . . . . . . . . . . . . . . . . . . . . . . . . . . Garrisons Compromised 2 | . . . . . . . . . . . . . . . . . . . . . . 1 . 1 . . . . . . . . . . . . . . Overloaded Fab Kills . | . . . . . . . . . . . . . . . . . . . . . . . . . . . . . . . . . . . . . . . Hacking | -11 -10 -10 -9 -9 -9 -8 -8 -8 -8 -8 -7 -7 -7 -7 -7 -7 -6 -6 -6 -6 -6 -5 -5 -5 -5 -5 -5 -5 -5 -4 -4 -3 -3 -2 -2 -1 -1 -1 --------- Run | Scr Mat Min Mat Min Exi Min Mat Gar Mat Gar Fac Gar Fac Low Low Dat Pro Fac Gar Fac Gar Fac Gar Fac Ext Cet Arc Hub Gar Fac Gar Res Arm Res Gar Acc Gar Acc Machines Accessed 132 | . 10 . 6 1 5 . 5 . 10 . 14 . 5 . . 4 1 6 . 12 . 11 . 6 5 1 . 3 . 6 . 7 11 2 . 1 . . Terminals 72 | . 8 . 4 1 . . 4 . 8 . 8 . 2 . . . 1 3 . 5 . 7 . 1 5 1 . 2 . 2 . 2 8 . . . . . Fabricators 16 | . . . . . . . . . . . 1 . 2 . . . . 1 . 3 . 2 . 1 . . . . . 2 . 1 2 1 . . . . Repair Stations 8 | . . . 1 . . . . . . . 1 . 1 . . . . . . 1 . . . 1 . . . . . 1 . 1 1 . . . . . Recycling Units 4 | . 2 . 1 . . . . . 1 . . . . . . . . . . . . . . . . . . . . . . . . . . . . . Scanalyzers 3 | . . . . . . . . . . . 1 . . . . . . 1 . 1 . . . . . . . . . . . . . . . . . . Garrison Access 20 | . . . . . . . 1 . 1 . 3 . . . . . . 1 . 2 . 2 . 3 . . . 1 . 1 . 3 . 1 . 1 . . Total Hacks 419 | . 25 . 20 2 5 . 16 . 32 . 46 . 8 . . 27 3 22 . 36 . 33 . 12 12 1 . 13 . 28 . 18 56 3 . 1 . . Successful 254 | . 14 . 11 1 5 . 7 . 18 . 30 . 6 . . 27 3 16 . 27 . 19 . 10 4 1 . 8 . 15 . 12 18 1 . 1 . . Failed 164 | . 10 . 9 1 . . 9 . 14 . 16 . 2 . . . . 6 . 9 . 14 . 2 8 . . 5 . 13 . 6 38 2 . . . . Catastrophic 26 | . 2 . 1 . . . 1 . . . . . 1 . . . . 2 . 1 . 4 . . 1 . . . . 1 . 2 9 1 . . . . Database Lockouts 1 | . 1 . . . . . . . . . . . . . . . . . . . . . . . . . . . . . . . . . . . . . Manual 164 | . 12 . 7 1 1 . 8 . 17 . 18 . 1 . . . . 12 . 17 . 19 . 6 5 1 . 7 . 12 . 2 17 1 . . . . Terminals 268 | . 23 . 16 2 . . 14 . 29 . 30 . 4 . . . 3 18 . 21 . 20 . 5 12 1 . 12 . 11 . 8 39 . . . . . Fabricators 50 | . . . . . . . . . . . 1 . 2 . . . . 1 . 6 . 7 . 2 . . . . . 13 . 3 13 2 . . . . Repair Stations 20 | . . . 3 . . . . . . . 1 . 2 . . . . . . 1 . . . 2 . . . . . 3 . 4 4 . . . . . Recycling Units 4 | . 2 . 1 . . . . . 1 . . . . . . . . . . . . . . . . . . . . . . . . . . . . . Scanalyzers 17 | . . . . . . . . . . . 11 . . . . . . 2 . 4 . . . . . . . . . . . . . . . . . . Garrison Access 28 | . . . . . . . 2 . 2 . 3 . . . . . . 1 . 4 . 6 . 3 . . . 1 . 1 . 3 . 1 . 1 . . Terminal Hacks 149 | . 12 . 9 1 5 . 5 . 14 . 10 . 3 . . 27 3 8 . 13 . 6 . 3 3 1 . 3 . 5 . 5 13 . . . . . Record 20 | . . . . . 4 . . . . . . . . . . 11 3 . . 1 . . . . . . . . . . . . 1 . . . . . Part Schematic 22 | . . . . . . . . . . . 1 . . . . 9 . 4 . 1 . . . 2 2 . . . . . . . 3 . . . . . Robot Schematic 4 | . . . . . . . . . . . . . . . . 4 . . . . . . . . . . . . . . . . . . . . . . Robot Analysis 5 | . 3 . 1 . . . . . 1 . . . . . . . . . . . . . . . . . . . . . . . . . . . . . Prototype ID Bank 15 | . 2 . 2 . . . . . 2 . . . . . . 3 . . . 3 . 1 . . 1 . . 1 . . . . . . . . . . Open Door 1 | . . . . . . . . . . . . . . . . . . . . . . . . . . 1 . . . . . . . . . . . . Level Access Points 4 | . . . . . . . . . 1 . 1 . . . . . . . . . . 1 . . . . . . . . . . 1 . . . . . Branch Access Points 7 | . . . . . . . 1 . . . 1 . 1 . . . . 1 . . . 1 . 1 . . . . . . . 1 . . . . . . Emergency Access Points 5 | . . . . . . . 1 . . . . . . . . . . . . 2 . . . . . . . . . . . 1 1 . . . . . Terminal Index 6 | . . . 1 . . . 1 . . . . . . . . . . 1 . . . 1 . . . . . . . 1 . . 1 . . . . . Garrison Index 1 | . . . . . . . . . . . . . . . . . . . . 1 . . . . . . . . . . . . . . . . . . Alert Level 7 | . 1 . . . . . . . 3 . 2 . . . . . . . . . . 1 . . . . . . . . . . . . . . . . Unreport Threat 10 | . 1 . 1 . . . . . 3 . . . 1 . . . . . . 1 . . . . . . . . . 3 . . . . . . . . Locate Traps 15 | . 1 . 1 . . . . . . . 3 . 1 . . . . 1 . 2 . . . . . . . . . 1 . 2 3 . . . . . Disarm Traps 1 | . 1 . . . . . . . . . . . . . . . . . . . . . . . . . . . . . . . . . . . . . Reprogram Traps 2 | . . . . . . . . . . . . . . . . . . 1 . . . . . . . . . . . . . . 1 . . . . . Dispatch Records 2 | . . . 1 . . . . . 1 . . . . . . . . . . . . . . . . . . . . . . . . . . . . . Recall Reinforcements 2 | . . . 1 . . . . . 1 . . . . . . . . . . . . . . . . . . . . . . . . . . . . . Hauler Manifests 2 | . . . . . . . 1 . . . . . . . . . . . . . . . . . . . . . . . . 1 . . . . . . Registered Components 5 | . . . . . . . . . 1 . 1 . . . . . . . . 1 . 1 . . . . . . . . . . 1 . . . . . Registered Prototypes 1 | . . . . . . . 1 . . . . . . . . . . . . . . . . . . . . . . . . . . . . . . . Zone Layout 11 | . 3 . 1 1 . . . . 1 . 1 . . . . . . . . 1 . . . . . . . 2 . . . . 1 . . . . . EX-Prototype ID Bank 1 | . . . . . 1 . . . . . . . . . . . . . . . . . . . . . . . . . . . . . . . . . Fabricator Hacks 10 | . . . . . . . . . . . . . 1 . . . . 1 . 3 . 1 . 1 . . . . . 1 . 2 . . . . . . Network Status 4 | . . . . . . . . . . . . . 1 . . . . . . . . 1 . 1 . . . . . 1 . . . . . . . . Load Schematic 2 | . . . . . . . . . . . . . . . . . . . . 1 . . . . . . . . . . . 1 . . . . . . Build 4 | . . . . . . . . . . . . . . . . . . 1 . 2 . . . . . . . . . . . 1 . . . . . . Repair Station Hacks 9 | . . . . . . . . . . . . . 2 . . . . . . . . . . 2 . . . . . 2 . 2 1 . . . . . Scan Component 5 | . . . . . . . . . . . . . 1 . . . . . . . . . . 1 . . . . . 1 . 1 1 . . . . . Repair 4 | . . . . . . . . . . . . . 1 . . . . . . . . . . 1 . . . . . 1 . 1 . . . . . . Recycling Unit Hacks . | . . . . . . . . . . . . . . . . . . . . . . . . . . . . . . . . . . . . . . . Scanalyzer 14 | . . . . . . . . . . . 10 . . . . . . 2 . 2 . . . . . . . . . . . . . . . . . . Insert Component 6 | . . . . . . . . . . . 4 . . . . . . 1 . 1 . . . . . . . . . . . . . . . . . . Analyze 8 | . . . . . . . . . . . 6 . . . . . . 1 . 1 . . . . . . . . . . . . . . . . . . Garrison Access Hacks 21 | . . . . . . . 1 . 1 . 3 . . . . . . 1 . 3 . 2 . 3 . . . 1 . 1 . 3 . 1 . 1 . . Unlock Access 10 | . . . . . . . 1 . 1 . 1 . . . . . . 1 . 1 . 1 . . . . . 1 . 1 . . . 1 . 1 . . Seal Access 10 | . . . . . . . . . . . 2 . . . . . . . . 1 . 1 . 3 . . . . . . . 3 . . . . . . Coupler Status 1 | . . . . . . . . . . . . . . . . . . . . 1 . . . . . . . . . . . . . . . . . . Unauthorized Hacks 51 | . 2 . 2 . . . 1 . 3 . 7 . . . . . . 4 . 6 . 10 . 1 1 . . 4 . 6 . . 4 . . . . . Terminals 23 | . . . . . . . 1 . 1 . 5 . . . . . . 4 . 3 . 3 . . 1 . . 4 . . . . 1 . . . . . Track 1 | . . . . . . . . . . . . . . . . . . . . . . 1 . . . . . . . . . . . . . . . . Assimilate 4 | . . . . . . . 1 . . . 1 . . . . . . 1 . . . 1 . . . . . . . . . . . . . . . . Botnet 11 | . . . . . . . . . 1 . 2 . . . . . . 1 . 3 . 1 . . . . . 2 . . . . 1 . . . . . Detonate 4 | . . . . . . . . . . . 1 . . . . . . 1 . . . . . . . . . 2 . . . . . . . . . . Disrupt 2 | . . . . . . . . . . . . . . . . . . 1 . . . . . . 1 . . . . . . . . . . . . . Operators 1 | . . . . . . . . . . . 1 . . . . . . . . . . . . . . . . . . . . . . . . . . . Fabricators 17 | . . . . . . . . . . . . . . . . . . . . 2 . 5 . 1 . . . . . 6 . . 3 . . . . . Report 1 | . . . . . . . . . . . . . . . . . . . . . . . . . . . . . . 1 . . . . . . . . Liberate 6 | . . . . . . . . . . . . . . . . . . . . 1 . 2 . . . . . . . 2 . . 1 . . . . . Fabnet 7 | . . . . . . . . . . . . . . . . . . . . 1 . 2 . 1 . . . . . 2 . . 1 . . . . . Haulers 3 | . . . . . . . . . . . . . . . . . . . . . . 1 . . . . . . . 1 . . 1 . . . . . Repair Stations 2 | . . . 1 . . . . . . . 1 . . . . . . . . . . . . . . . . . . . . . . . . . . . Mechanics 2 | . . . 1 . . . . . . . 1 . . . . . . . . . . . . . . . . . . . . . . . . . . . Recycling Units 4 | . 2 . 1 . . . . . 1 . . . . . . . . . . . . . . . . . . . . . . . . . . . . . Tunnel 4 | . 2 . 1 . . . . . 1 . . . . . . . . . . . . . . . . . . . . . . . . . . . . . Scanalyzers 2 | . . . . . . . . . . . 1 . . . . . . . . 1 . . . . . . . . . . . . . . . . . . Researchers 2 | . . . . . . . . . . . 1 . . . . . . . . 1 . . . . . . . . . . . . . . . . . . Garrison Access 3 | . . . . . . . . . 1 . . . . . . . . . . . . 2 . . . . . . . . . . . . . . . . Intercept 1 | . . . . . . . . . . . . . . . . . . . . . . 1 . . . . . . . . . . . . . . . . Watchers 2 | . . . . . . . . . 1 . . . . . . . . . . . . 1 . . . . . . . . . . . . . . . . Data Cores Recovered 4 | . . . . . . . 1 . . . . . . . . . . 1 . . . . . . 1 . . 1 . . . . . . . . . . Used 1 | . . . . . . . . . . . . . . . . . . . . . . . . . . . . 1 . . . . . . . . . . Hacking Detections 100 | . 7 . 5 1 . . 5 . 8 . 12 . 4 . . . 1 5 . 11 . 10 . 3 5 . . 2 . 5 . 4 11 1 . . . . Full Trace Events 6 | . 1 . . . . . 1 . . . . . . . . . 1 . . . . 1 . . . . . 1 . . . . 1 . . . . . Feedback Events . | . . . . . . . . . . . . . . . . . . . . . . . . . . . . . . . . . . . . . . . Feedback Blocked . | . . . . . . . . . . . . . . . . . . . . . . . . . . . . . . . . . . . . . . . Robot Schematics Acquired 4 | . . . . . . . . . . . . . . . . 4 . . . . . . . . . . . . . . . . . . . . . . Robots Built . | . . . . . . . . . . . . . . . . . . . . . . . . . . . . . . . . . . . . . . . Authchips . | . . . . . . . . . . . . . . . . . . . . . . . . . . . . . . . . . . . . . . . Time . | . . . . . . . . . . . . . . . . . . . . . . . . . . . . . . . . . . . . . . . Total Robot Build Rating . | . . . . . . . . . . . . . . . . . . . . . . . . . . . . . . . . . . . . . . . Part Schematics Acquired 28 | . . . . . . . . . . . 5 . . . . 9 . 5 . 2 . . . 2 2 . . . . . . . 3 . . . . . Parts Built 4 | . . . . . . . . . . . . . . . . . . 2 . 1 . . . . . . . . . . . 1 . . . . . . Authchips 3 | . . . . . . . . . . . . . . . . . . 1 . 1 . . . . . . . . . . . 1 . . . . . . Time 293 | . . . . . . . . . . . . . . . . . . 64 . 153 . . . . . . . . . . . 76 . . . . . . Total Part Build Rating 26 | . . . . . . . . . . . . . . . . . . 16 . 5 . . . . . . . . . . . 5 . . . . . . Parts Repaired 4 | . . . . . . . . . . . . . 1 . . . . . . . . . . 1 . . . . . 1 . 1 . . . . . . Time 144 | . . . . . . . . . . . . . 38 . . . . . . . . . . 19 . . . . . 54 . 33 . . . . . . Parts Recycled . | . . . . . . . . . . . . . . . . . . . . . . . . . . . . . . . . . . . . . . . Recycled Matter . | . . . . . . . . . . . . . . . . . . . . . . . . . . . . . . . . . . . . . . . Retrieved Matter . | . . . . . . . . . . . . . . . . . . . . . . . . . . . . . . . . . . . . . . . Retrieved Components . | . . . . . . . . . . . . . . . . . . . . . . . . . . . . . . . . . . . . . . . Parts Scanalyzed 6 | . . . . . . . . . . . 4 . . . . . . 1 . 1 . . . . . . . . . . . . . . . . . . Part Schematics Acquired 6 | . . . . . . . . . . . 4 . . . . . . 1 . 1 . . . . . . . . . . . . . . . . . . Parts Damaged . | . . . . . . . . . . . . . . . . . . . . . . . . . . . . . . . . . . . . . . . Bothacking | -11 -10 -10 -9 -9 -9 -8 -8 -8 -8 -8 -7 -7 -7 -7 -7 -7 -6 -6 -6 -6 -6 -5 -5 -5 -5 -5 -5 -5 -5 -4 -4 -3 -3 -2 -2 -1 -1 -1 ------------ Run | Scr Mat Min Mat Min Exi Min Mat Gar Mat Gar Fac Gar Fac Low Low Dat Pro Fac Gar Fac Gar Fac Gar Fac Ext Cet Arc Hub Gar Fac Gar Res Arm Res Gar Acc Gar Acc Used RIF Installer 10 | . . . . . . . . 1 . 1 . 1 . . . . . . 1 . 1 . 1 . . . . . 1 . 1 . . . 1 . 1 . Threat Obfuscator 2 | . . . . . . . . . . . . . . . . . . . 1 . . . . . . . . . . . . . . . . . 1 . Signal Jammer 1 | . . . . . . . . . . . . . . . . . . . . . . . . . . . . . 1 . . . . . . . . . Robot Detection 1 | . . . . . . . . . . 1 . . . . . . . . . . . . . . . . . . . . . . . . . . . . Patrol Navigation 1 | . . . . . . . . . . . . . . . . . . . . . 1 . . . . . . . . . . . . . . . . . Structural Interface 1 | . . . . . . . . . . . . . . . . . . . . . . . . . . . . . . . . . . . 1 . . . Autooverride 2 | . . . . . . . . . . . . 1 . . . . . . . . . . . . . . . . . . 1 . . . . . . . Autoassimilate 1 | . . . . . . . . . . . . . . . . . . . . . . . 1 . . . . . . . . . . . . . . . Robots Hacked 178 | . . . . . . . . . 1 . 2 . . . 1 . 3 . . 6 6 7 3 14 7 . 3 3 3 12 13 23 12 . 6 . 13 40 Non-combat 35 | . . . . . . . . . 1 . 2 . . . . . . . . 3 . 3 . 6 . . . . . 8 . 5 . . . . . 7 Combat 143 | . . . . . . . . . . . . . . . 1 . 3 . . 3 6 4 3 8 7 . 3 3 3 4 13 18 12 . 6 . 13 33 Autooverrided 24 | . . . . . . . . . . . . . . . . . . . . . 1 . . . 1 . 2 . . . 2 2 2 . 3 . 3 8 Autoassimilated 25 | . . . . . . . . . . . . . . . . . . . . . . . . 2 1 . 1 . 1 2 3 5 2 . 3 . 2 3 Robot Hacks Applied 141 | . . . . . . . . . 3 . 4 . . . 1 . 3 . . 10 5 9 3 14 5 . . 3 2 13 10 11 2 . . . 7 36 parse_system 5 | . . . . . . . . . . . . . . . . . . . . 1 . . . 1 . . . . . 1 . . . . . . . 2 no_distress 2 | . . . . . . . . . . . . . . . . . . . . . . 1 . 1 . . . . . . . . . . . . . . generate_echo 1 | . . . . . . . . . . . . . . . . . . . . . . 1 . . . . . . . . . . . . . . . . find_chute 1 | . . . . . . . . . . . . . . . . . . . . . . 1 . . . . . . . . . . . . . . . . deconstruct_machine 1 | . . . . . . . . . . . . . . . . . . . . . . . . . . . . . . 1 . . . . . . . . map_earth 2 | . . . . . . . . . . . . . . . . . . . . 1 . 1 . . . . . . . . . . . . . . . . find_fabricator 1 | . . . . . . . . . . . . . . . . . . . . 1 . . . . . . . . . . . . . . . . . . drop_inventory 11 | . . . . . . . . . . . . . . . . . . . . 1 . . . 1 . . . . . 4 . 3 . . . . . 2 locate_stockpiles 2 | . . . . . . . . . . . . . . . . . . . . 1 . . . . . . . . . . . . . . . . . 1 find_recycling 1 | . . . . . . . . . . . . . . . . . . . . . . . . 1 . . . . . . . . . . . . . . purge_threat 5 | . . . . . . . . . 1 . . . . . . . . . . . . . . 1 . . . . . . . . . . . . . 3 find_terminals 1 | . . . . . . . . . 1 . . . . . . . . . . . . . . . . . . . . . . . . . . . . . disarm_traps 2 | . . . . . . . . . 1 . . . . . . . . . . . . . . 1 . . . . . . . . . . . . . . block_reporting 1 | . . . . . . . . . . . . . . . . . . . . . . . . . . . . . . . . . . . . . . 1 map_route 13 | . . . . . . . . . . . 2 . . . . . . . . 1 . 1 . 2 . . . . . 3 . 2 . . . . . 2 mark_security 3 | . . . . . . . . . . . 1 . . . . . . . . . . . . . . . . . . 2 . . . . . . . . relay_feed 1 | . . . . . . . . . . . . . . . . . . . . . . . . . . . . . . 1 . . . . . . . . find_garrison 1 | . . . . . . . . . . . . . . . . . . . . . . . . . . . . . . . . . . . . . . 1 link_fov 2 | . . . . . . . . . . . 1 . . . . . . . . 1 . . . . . . . . . . . . . . . . . . scatter_targeting 1 | . . . . . . . . . . . . . . . . . . . . . . . . . . . . . . . . . . . . . . 1 disrupt_area 1 | . . . . . . . . . . . . . . . . . . . . . . 1 . . . . . . . . . . . . . . . . overload_power 1 | . . . . . . . . . . . . . . . . . . . . . . . . . . . . . . . . . . . . . . 1 amplify_resonance 3 | . . . . . . . . . . . . . . . . . . . . . 1 . . . . . . . . . . 2 . . . . . . disable_weapons 5 | . . . . . . . . . . . . . . . . . . . . . . . . . 2 . . . . . 2 . . . . . . 1 go_dormant 1 | . . . . . . . . . . . . . . . . . . . . . . . . 1 . . . . . . . . . . . . . . overwrite_iff 29 | . . . . . . . . . . . . . . . . . 3 . . 3 3 1 . 2 1 . . 1 2 1 1 . 2 . . . 2 7 formatsys_high 44 | . . . . . . . . . . . . . . . 1 . . . . . 1 2 3 3 2 . . 2 . . 7 4 . . . . 5 14 Relay Couplers Released 107 | . . . . . . . . 8 . 6 . 9 . . . . . . 5 . 10 . 13 . . . . . 8 . 12 3 . . 12 . 10 11 Machine Destruction 101 | . . . . . . . . 8 . 6 . 9 . . . . . . 5 . 10 . 13 . . . . . 8 . 12 . . . 12 . 10 8 Programmers 6 | . . . . . . . . . . . . . . . . . . . . . . . . . . . . . . . . 3 . . . . . 3 Attached 44 | . . . . . . . . . 1 . 1 . . 1 . . . . . 2 2 3 2 3 1 . . 1 1 2 4 3 . . 3 . 3 11 Fabnet Peak Effective % 9 | . . . . . . . . . . . . . . . . . . . . . . . . . . . . . . 9 9 9 9 5 5 1 1 1 Autooverrided 15 | . . . . . . . . . . . . . . . . . . . . . . . . . . . . . . 1 1 5 7 . . . 1 . Robots Rewired 21 | . . . . . . . . . . . . . . . . . . . . . . . . . 17 . . . . . . . 4 . . . . . Allies Hacked 11 | . . . . . . . . . . . . . . . . . . . . . . 1 . 1 . . . . . . . . 5 . . . 2 2 Hacks Repelled . | . . . . . . . . . . . . . . . . . . . . . . . . . . . . . . . . . . . . . . . Allies | -11 -10 -10 -9 -9 -9 -8 -8 -8 -8 -8 -7 -7 -7 -7 -7 -7 -6 -6 -6 -6 -6 -5 -5 -5 -5 -5 -5 -5 -5 -4 -4 -3 -3 -2 -2 -1 -1 -1 -------- Run | Scr Mat Min Mat Min Exi Min Mat Gar Mat Gar Fac Gar Fac Low Low Dat Pro Fac Gar Fac Gar Fac Gar Fac Ext Cet Arc Hub Gar Fac Gar Res Arm Res Gar Acc Gar Acc Total Allies 183 | . . . . . . . . . . . 1 . . . 1 . 4 . . 3 5 6 3 7 30 5 3 3 3 7 12 16 26 . 6 . 13 29 Largest Group 16 | . . . . . . . . . . . 1 1 . . 1 1 4 1 . 1 3 2 3 4 16 16 11 8 1 4 8 8 16 14 15 8 10 5 Highest-Rated Group 795 | . . . . . . . . . . . 26 19 . . 16 16 183 96 . 47 99 98 139 186 583 777 606 439 29 188 372 393 795 679 737 398 547 375 Highest-Rated Ally 178 | . . . . . . . . . . . 26 19 . . 16 16 96 96 . 47 41 49 49 49 159 143 96 96 29 54 56 64 82 64 69 64 69 178 Total Orders 3 | . . . . . . . . . . . . 1 . . . . . . . . . . . . . . . 1 . . . . . . . . . 1 STAY 3 | . . . . . . . . . . . . 1 . . . . . . . . . . . . . . . 1 . . . . . . . . . 1 Ally Attacks 1038 | . . . . . . . . . . . . . . . 4 . 35 1 . 9 27 25 2 67 143 93 25 59 9 28 39 122 97 . 84 . 43 126 Total Damage 28749 | . . . . . . . . . . . . . . . 48 . 1002 43 . 123 618 901 97 2063 3395 1860 680 1505 113 1001 801 3406 2749 . 2503 . 1876 3965 Kills 202 | . . . . . . . . . . . . . . . . . 8 1 . . 7 6 . 22 27 26 3 15 . 8 5 16 18 . 14 . 6 20 Allies Corrupted 11 | . . . . . . . . . . . . . . . . . . . . . . 2 . 2 . . . . . 1 . . 2 . . . 1 3 Allies Melted 1 | . . . . . . . . . . . . . . . . . . . . . . . . . . . . . 1 . . . . . . . . . Intel | -11 -10 -10 -9 -9 -9 -8 -8 -8 -8 -8 -7 -7 -7 -7 -7 -7 -6 -6 -6 -6 -6 -5 -5 -5 -5 -5 -5 -5 -5 -4 -4 -3 -3 -2 -2 -1 -1 -1 ------- Run | Scr Mat Min Mat Min Exi Min Mat Gar Mat Gar Fac Gar Fac Low Low Dat Pro Fac Gar Fac Gar Fac Gar Fac Ext Cet Arc Hub Gar Fac Gar Res Arm Res Gar Acc Gar Acc Robot Analysis Total 5 | . 3 . 1 . . . . . 1 . . . . . . . . . . . . . . . . . . . . . . . . . . . . . Derelict Logs Recovered 4 | . . . . 1 . . . . . . . . . 1 1 . 1 . . . . . . . . . . . . . . . . . . . . . Drone Launches . | . . . . . . . . . . . . . . . . . . . . . . . . . . . . . . . . . . . . . . . Drone Recoveries . | . . . . . . . . . . . . . . . . . . . . . . . . . . . . . . . . . . . . . . . Exploration | -11 -10 -10 -9 -9 -9 -8 -8 -8 -8 -8 -7 -7 -7 -7 -7 -7 -6 -6 -6 -6 -6 -5 -5 -5 -5 -5 -5 -5 -5 -4 -4 -3 -3 -2 -2 -1 -1 -1 ------------- Run | Scr Mat Min Mat Min Exi Min Mat Gar Mat Gar Fac Gar Fac Low Low Dat Pro Fac Gar Fac Gar Fac Gar Fac Ext Cet Arc Hub Gar Fac Gar Res Arm Res Gar Acc Gar Acc Turns Passed 34648 | 5 930 156 1211 258 711 828 1003 922 1454 639 2001 775 734 328 457 91 498 582 1550 1223 1462 1982 910 1925 1095 382 256 281 1099 956 908 1556 1193 98 840 113 809 2427 Spaces Moved 21327 | 5 569 122 696 150 487 422 617 560 853 389 1499 443 517 278 378 82 370 400 641 784 726 1030 582 1391 700 227 108 180 720 599 508 971 714 72 561 75 415 1486 Core 1 | . . . . . . . . . . . . . . . . . . . . . 1 . . . . . . . . . . . . . . . . . Treads 350 | . . . . . . . . . . . . . . . . . . . . . 63 287 . . . . . . . . . . . . . . . . Legs 178 | 5 138 . . . . . . . . . . . . . . . . . . . 35 . . . . . . . . . . . . . . . . . Wheels 20798 | . 431 122 696 150 487 422 617 560 853 389 1499 443 517 278 378 82 370 400 641 784 627 743 582 1391 700 227 108 180 720 599 508 971 714 72 561 75 415 1486 Hover . | . . . . . . . . . . . . . . . . . . . . . . . . . . . . . . . . . . . . . . . Flight . | . . . . . . . . . . . . . . . . . . . . . . . . . . . . . . . . . . . . . . . Fastest Speed 105 | 120 105 105 120 145 145 145 113 120 116 125 110 117 112 112 112 112 112 112 115 112 112 115 125 115 120 130 130 130 123 123 111 129 130 130 130 130 130 130 Average Speed 130 | 120 111 105 135 145 145 145 119 130 122 125 114 129 117 112 112 112 112 124 187 139 162 153 125 119 124 130 130 130 123 124 128 129 130 130 130 130 130 130 Slowest Speed 1750 | 120 260 105 145 145 145 145 140 140 150 125 125 140 145 112 112 112 112 130 225 240 1750 240 140 131 150 130 145 130 130 129 129 130 130 130 130 130 130 150 Overloaded Moves . | . . . . . . . . . . . . . . . . . . . . . . . . . . . . . . . . . . . . . . . Propulsion Burnouts . | . . . . . . . . . . . . . . . . . . . . . . . . . . . . . . . . . . . . . . . Robots Hopped . | . . . . . . . . . . . . . . . . . . . . . . . . . . . . . . . . . . . . . . . Cave-ins Triggered . | . . . . . . . . . . . . . . . . . . . . . . . . . . . . . . . . . . . . . . . Exploration Rate (%) 52 | 2 94 25 61 46 86 56 50 79 69 42 49 66 12 57 54 69 61 16 70 30 71 27 64 39 86 74 85 33 77 23 60 34 64 4 80 5 80 53 Regions Visited 38 Branch Regions 13 Pre-discovered Areas 8 | . 2 . 1 . 1 . . . 1 . . . . . . 1 2 . . . . . . . . . . . . . . . . . . . . . Known Exits Taken 16 | . . . . . . . 1 . 1 . 1 . 1 1 . . 1 1 . 1 . 1 . 1 . . . 1 . 1 . 1 1 1 . 1 . . Unknown Exits Taken 12 | 1 1 1 1 1 1 1 . . . . . . . . 1 1 . . . . . . . . 1 1 1 . . . . . . . . . . . Scrap Searched 5 | . . . . . . 1 . . . . . . . 1 . . 3 . . . . . . . . . . . . . . . . . . . . . Spaces Dug 75 | . . . . . . . . . . . 9 6 . . . . . 1 . . 2 13 8 2 . . . . . 8 2 9 6 . 6 . . 3 Terrain Destroyed 2155 | . 12 5 21 . . 7 17 50 3 37 46 136 27 1 6 . 2 12 83 2 33 29 76 5 3 8 3 995 88 52 102 81 40 . 49 . 91 33 Melee . | . . . . . . . . . . . . . . . . . . . . . . . . . . . . . . . . . . . . . . . Projectile 191 | . . . . . . . . . . . 13 1 5 1 1 . 2 3 2 2 . 15 . 5 3 8 3 3 3 24 8 42 19 . 3 . 7 18 AOE 1964 | . 12 5 21 . . 7 17 50 3 37 33 135 22 . 5 . . 9 81 . 33 14 76 . . . . 992 85 28 94 39 21 . 46 . 84 15 Terrain Rammed . | . . . . . . . . . . . . . . . . . . . . . . . . . . . . . . . . . . . . . . . Walls Destroyed . | . . . . . . . . . . . . . . . . . . . . . . . . . . . . . . . . . . . . . . . Machines Disabled . | . . . . . . . . . . . . . . . . . . . . . . . . . . . . . . . . . . . . . . . Actions | -11 -10 -10 -9 -9 -9 -8 -8 -8 -8 -8 -7 -7 -7 -7 -7 -7 -6 -6 -6 -6 -6 -5 -5 -5 -5 -5 -5 -5 -5 -4 -4 -3 -3 -2 -2 -1 -1 -1 --------- Run | Scr Mat Min Mat Min Exi Min Mat Gar Mat Gar Fac Gar Fac Low Low Dat Pro Fac Gar Fac Gar Fac Gar Fac Ext Cet Arc Hub Gar Fac Gar Res Arm Res Gar Acc Gar Acc Total 26100 | 4 764 134 828 190 491 622 759 665 1085 474 1674 579 609 284 397 81 412 454 899 872 902 1284 702 1596 902 280 207 208 863 755 708 1182 905 77 637 90 643 1882 Wait 1512 | . 89 . 10 41 . 185 21 5 51 26 41 36 41 . 8 . 3 17 103 6 25 72 18 64 46 13 89 1 12 34 74 46 37 . . 13 121 164 Move 21294 | 4 568 121 695 149 486 421 616 559 853 388 1498 442 516 277 377 81 369 400 640 783 725 1030 581 1390 699 226 107 180 719 599 507 970 713 71 559 75 414 1486 Hop . | . . . . . . . . . . . . . . . . . . . . . . . . . . . . . . . . . . . . . . . Pick Up 266 | . 24 1 16 . . . 11 6 15 4 13 3 6 1 . . 3 9 1 4 4 21 12 13 4 6 . 1 7 18 11 11 16 . 5 . 4 16 Fast Attach 137 | . 1 . 3 . 2 1 7 2 6 . 8 1 8 . . . . 1 6 7 3 5 . 9 6 3 . 1 5 7 5 16 13 1 . . 1 9 Attach 121 | . 1 . 5 . . . 4 8 3 1 2 4 1 . . . 1 4 3 1 6 7 8 6 . . 1 1 5 9 9 9 2 3 . 2 2 13 Detach 36 | . . . . . . . . 1 . . 1 . 1 . . . 1 . 1 1 . 3 2 4 . . . . 2 2 3 7 4 2 . . . 1 Swap 377 | . 8 2 10 . 1 4 7 8 15 5 18 10 7 1 4 . 5 1 8 20 20 32 12 23 15 3 . 4 5 14 11 17 11 . 9 . 18 49 Drop 308 | . 12 1 13 . 2 3 13 . 25 2 22 . 11 . . . 3 6 3 12 . 26 5 23 13 9 1 . 8 21 8 19 27 . 3 . 2 15 Fire 1493 | . 61 9 76 . . 8 80 52 114 40 67 43 18 5 8 . 27 16 46 30 65 88 40 64 19 20 8 12 44 51 46 87 51 . 21 . 49 128 Melee 7 | . . . . . . . . . 3 . 4 . . . . . . . . . . . . . . . . . . . . . . . . . . . Ram 1 | . . . . . . . . . . . . . . . . . . . . . . . . . . . 1 . . . . . . . . . . . Kick . | . . . . . . . . . . . . . . . . . . . . . . . . . . . . . . . . . . . . . . . Crush . | . . . . . . . . . . . . . . . . . . . . . . . . . . . . . . . . . . . . . . . Escape Stasis 430 | . . . . . . . . 24 . 8 . 40 . . . . . . 88 8 54 . 24 . 16 . . 8 56 . 32 . . . 40 . 32 . Rewire 118 | . . . . . . . . . . . . . . . . . . . . . . . . . 84 . . . . . 2 . 31 . . . . 1 Trap . | . . . . . . . . . . . . . . . . . . . . . . . . . . . . . . . . . . . . . . . Miscellaneous . | . . . . . . . . . . . . . . . . . . . . . . . . . . . . . . . . . . . . . . . Route ------- -11/Scrapyard -10/Materials (discovered 5 exits: *Mat x3 / [*Min x2]) -10/Mines -9/Materials (discovered 4 exits: *Mat x2 / *Min / [*Sto]) -9/Mines (discovered 2 exits: *Mat / *Exi) -9/Exiles -8/Mines -8/Materials (discovered 4 exits: *Fac x3 / Gar) -8/Garrison (discovered 3 exits: *Mat x3) -8/Materials (discovered 4 exits: *Fac x3 / Gar) -8/Garrison -7/Factory (discovered 7 exits: *Fac x4 / Low x2 / Gar) -7/Garrison (discovered 2 exits: *Fac x2) -7/Factory (discovered 2 exits: *Low x2) -7/Lower Caves -7/Lower Caves -7/Data Miner -6/Proximity Caves -6/Factory (discovered 6 exits: Fac x3 / Low x2 / Gar) -6/Garrison (discovered 3 exits: *Fac x3) -6/Factory (discovered 3 exits: *Fac x2 / Gar) -6/Garrison (discovered 3 exits: *Fac x3) -5/Factory (discovered 9 exits: *Fac x4 / Upp x2 / Ext x2 / Gar) -5/Garrison (discovered 2 exits: *Fac x2) -5/Factory (discovered 7 exits: *Fac x3 / *Upp x2 / *Ext x2) -5/Extension (discovered 2 exits: *Fac / *Cet) -5/Cetus (discovered 2 exits: *Fac / [*Arc]) -5/Archives (discovered 3 exits: *Fac / *Hub x2) -5/Hub_04(d) (discovered 3 exits: *Fac x2 / Gar) -5/Garrison (discovered 3 exits: *Fac x3) -4/Factory (discovered 2 exits: *Res / Gar) -4/Garrison (discovered 2 exits: *Res x2) -3/Research (discovered 3 exits: *Arm / Qua x2) -3/Armory (discovered 3 exits: *Res x2 / [*Lab]) -2/Research -2/Garrison (discovered 3 exits: *Acc x3) -1/Access -1/Garrison (discovered 2 exits: [*Acc x2]) -1/Access History --------- Turn | Location | Event 1 | -11/Scrapyard | Discovered new exit (range 3) 6 | -11/Scrapyard | Entered Materials 107 | -10/Materials | Discovered new exit (range 16) 295 | -10/Materials | Discovered new exit (range 15) 298 | -10/Materials | Central database locked down 306 | -10/Materials | Build established: Mutant 537 | -10/Materials | Discovered new exit (range 9) 663 | -10/Materials | Discovered new exit (range 12) 784 | -10/Materials | Discovered new exit (range 3) 936 | -10/Materials | Entered Mines 1025 | -10/Mines | Discovered new exit (range 9) 1092 | -10/Mines | Entered Materials 1092 | -9/Materials | Evolved 2 slots: Utility x2 1226 | -9/Materials | Destroyed 9 combat bots 1530 | -9/Materials | Destroyed 7 combat bots 1628 | -9/Materials | Discovered new exit (range 8) 1798 | -9/Materials | Discovered new exit (range 7) 1881 | -9/Materials | Build established: Scavenger-Mutant 2078 | -9/Materials | Discovered new exit (range 10) 2203 | -9/Materials | Discovered new exit (range 15) 2292 | -9/Materials | First assault squad dispatched 2303 | -9/Materials | Entered Mines 2348 | -9/Mines | Assembled infested the area 2524 | -9/Mines | Learned location of 1 exit from Materials 2529 | -9/Mines | Discovered new exit (range 11) 2555 | -9/Mines | Discovered new exit (range 5) 2561 | -9/Mines | Entered Exiles 2596 | -9/Exiles | Met 8R-AWN 2621 | -9/Exiles | Met EX-HEX 2662 | -9/Exiles | Met EX-BIN 2677 | -9/Exiles | Aligned with FarCom system 2679 | -9/Exiles | Given EX-Vault access code 2727 | -9/Exiles | Opened EX-Vault 2740 | -9/Exiles | Found Cloak of Protection 2772 | -9/Exiles | Warned to stay clear of 0b10 Research branches 2810 | -9/Exiles | Met EX-DEC 2857 | -9/Exiles | Visited The Gauntlet 2996 | -9/Exiles | Learned location of Zion (-6) 3259 | -9/Exiles | Discovered new exit (range 10) 3272 | -9/Exiles | Left Exiles lab with Cloak of Protection 3272 | -9/Exiles | Entered Mines 3310 | -8/Mines | Discovered new exit (range 8) 4100 | -8/Mines | Entered Materials 4100 | -8/Materials | Evolved 2 slots: Propulsion x1, Utility x1 4101 | -8/Materials | Identified exit to Factory 4289 | -8/Materials | Discovered exit to Factory (range 11) 4465 | -8/Materials | Discovered exit to Factory (range 8) 5005 | -8/Materials | Garrison activated, responded to threat 5063 | -8/Materials | Lost 3 parts (1n2u) 5099 | -8/Materials | Identified exit to Garrison 5103 | -8/Materials | Entered Garrison 5104 | -8/Garrison | Build established: Mutant 5148 | -8/Garrison | Triggered checkpoint 5267 | -8/Garrison | Core integrity fell below 50% 5306 | -8/Garrison | Triggered checkpoint 5307 | -8/Garrison | Lost 8 parts (1p3n1u3w) 5344 | -8/Garrison | Discovered new exit (range 8) 5384 | -8/Garrison | Triggered checkpoint 5434 | -8/Garrison | Discovered new exit (range 8) 5449 | -8/Garrison | Installed Relay Interface Framework 5558 | -8/Garrison | Discovered new exit (range 13) 5579 | -8/Garrison | Build established: Scavenger-Mutant 5704 | -8/Garrison | Garrison Relay disabled 5935 | -8/Garrison | Triggered checkpoint 5973 | -8/Garrison | Garrison Relay disabled 6025 | -8/Garrison | Entered Materials 7091 | -8/Materials | Build established: Bothacker-Mutant 7479 | -8/Materials | Identified exit to Garrison 7479 | -8/Materials | Entered Garrison 7533 | -8/Garrison | Triggered checkpoint 7574 | -8/Garrison | Core integrity fell below 20% 7601 | -8/Garrison | Garrison Relay disabled 7649 | -8/Garrison | Triggered checkpoint 7674 | -8/Garrison | Triggered checkpoint 7724 | -8/Garrison | Triggered checkpoint 7853 | -8/Garrison | Discovered exit to Factory (range 12) 7874 | -8/Garrison | Expanded RIF knowledge: Robot Detection 7970 | -8/Garrison | Triggered checkpoint 8000 | -8/Garrison | Garrison Relay disabled 8118 | -8/Garrison | Entered Factory 8118 | -7/Factory | Evolved 2 slots: Propulsion x1, Utility x1 8801 | -7/Factory | Discovered new exit (range 20) 9189 | -7/Factory | Build established: Hacker-Mutant 9392 | -7/Factory | Identified exit to Factory 9442 | -7/Factory | Identified exit to Lower Caves 10106 | -7/Factory | Identified exit to Garrison 10119 | -7/Factory | Entered Garrison 10119 | -7/Garrison | Accompanied by 1 ally 10179 | -7/Garrison | Lost 3 parts (2n1u) 10190 | -7/Garrison | Triggered checkpoint 10229 | -7/Garrison | Garrison Relay disabled 10362 | -7/Garrison | Triggered checkpoint 10404 | -7/Garrison | Triggered checkpoint 10432 | -7/Garrison | Triggered checkpoint 10545 | -7/Garrison | Build established: Bothacker-Mutant 10590 | -7/Garrison | Discovered new exit (range 10) 10665 | -7/Garrison | Triggered checkpoint 10750 | -7/Garrison | Lost 3 parts (1p1n1w) 10764 | -7/Garrison | Discovered new exit (range 10) 10785 | -7/Garrison | Expanded RIF knowledge: Autooverride 10837 | -7/Garrison | Garrison Relay disabled 10894 | -7/Garrison | Entered Factory 11470 | -7/Factory | Repaired Imp. Light Armor Plating 11628 | -7/Factory | Entered Lower Caves 11716 | -7/Lower Caves | Attracted the attention of an 0b10 checkpoint 11743 | -7/Lower Caves | Identified exit to Lower Caves 11956 | -7/Lower Caves | Entered another Lower Caves area 12045 | -7/Lower Caves | Attracted the attention of an 0b10 checkpoint 12162 | -7/Lower Caves | Learned Factory terminal intel 12240 | -7/Lower Caves | Encountered a Warlord checkpoint 12398 | -7/Lower Caves | Discovered new exit (range 11) 12413 | -7/Lower Caves | Entered Data Miner 12413 | -7/Data Miner | Accompanied by 1 ally 12413 | -7/Data Miner | Discovered new exit (range 6) 12435 | -7/Data Miner | Met Data Miner 12456 | -7/Data Miner | Learned location of Section 7 (-2) 12456 | -7/Data Miner | Acquired the access code to Warlord's prototype stash 12476 | -7/Data Miner | Received God Mode back door access code from Data Miner 12504 | -7/Data Miner | Entered Proximity Caves 12504 | -6/Proximity Caves | Accompanied by 1 ally 12534 | -6/Proximity Caves | Escorted by Enhanced Grunt 12587 | -6/Proximity Caves | Attracted the attention of an 0b10 base 12636 | -6/Proximity Caves | Learned location of Armory (-3) 12636 | -6/Proximity Caves | Learned 6 Lower Caves zone layouts 12945 | -6/Proximity Caves | Attracted the attention of an 0b10 checkpoint 13002 | -6/Proximity Caves | Entered Factory 13002 | -6/Factory | Accompanied by 1 ally 13002 | -6/Factory | Evolved 2 slots: Power x1, Utility x1 13003 | -6/Factory | Identified exit to Factory 13004 | -6/Factory | Loaded intel: 26 terminal locations 13079 | -6/Factory | Fabricated Antimissile System (x2) 13411 | -6/Factory | Identified exit to Lower Caves 13515 | -6/Factory | Garrison activated, responded to threat 13584 | -6/Factory | Identified exit to Garrison 13584 | -6/Factory | Entered Garrison 13624 | -6/Garrison | Triggered checkpoint 13681 | -6/Garrison | Garrison Relay disabled 13741 | -6/Garrison | Triggered checkpoint 13768 | -6/Garrison | Spotted B-75 Beast 14034 | -6/Garrison | Triggered checkpoint 14051 | -6/Garrison | Destroyed B-75 Beast 14192 | -6/Garrison | Triggered checkpoint 14238 | -6/Garrison | Triggered checkpoint 14312 | -6/Garrison | Discovered new exit (range 11) 14537 | -6/Garrison | Discovered new exit (range 14) 14815 | -6/Garrison | Discovered new exit (range 12) 14867 | -6/Garrison | Expanded RIF knowledge: Threat Obfuscation 15134 | -6/Garrison | Entered Factory 15279 | -6/Factory | Fabricated Enh. Optical Array (x1) 15603 | -6/Factory | Build established: Bothacker-Skirmisher 15887 | -6/Factory | Discovered exit to Factory (range 15) 16200 | -6/Factory | Discovered exit to Factory (range 39) 16350 | -6/Factory | Identified exit to Garrison 16357 | -6/Factory | Entered Garrison 16408 | -6/Garrison | Triggered checkpoint 16435 | -6/Garrison | Garrison Relay disabled 16514 | -6/Garrison | Spotted B-75 Beast 16517 | -6/Garrison | Triggered checkpoint 16522 | -6/Garrison | Triggered checkpoint 16609 | -6/Garrison | Destroyed B-75 Beast 16646 | -6/Garrison | Triggered checkpoint 16716 | -6/Garrison | Discovered exit to Factory (range 19) 16788 | -6/Garrison | Triggered checkpoint 16822 | -6/Garrison | Garrison Relay disabled 17022 | -6/Garrison | Triggered checkpoint 17055 | -6/Garrison | Garrison Relay disabled 17095 | -6/Garrison | Discovered exit to Factory (range 13) 17198 | -6/Garrison | Triggered checkpoint 17297 | -6/Garrison | Discovered exit to Factory (range 12) 17317 | -6/Garrison | Expanded RIF knowledge: Patrol Navigation 17362 | -6/Garrison | Triggered checkpoint 17410 | -6/Garrison | Lost 6 parts (1p3n2w) 17819 | -6/Garrison | Entered Factory 17819 | -5/Factory | Evolved 2 slots: Utility x2 18173 | -5/Factory | Garrison activated, responded to threat 18469 | -5/Factory | Identified exit to Upper Caves 18469 | -5/Factory | Identified exit to Extension 18700 | -5/Factory | Garrison activated, responded to threat 18893 | -5/Factory | Discovered new exit (range 14) 19056 | -5/Factory | Cargo convoy interrupted 19075 | -5/Factory | Incoming assault squad redirected 19277 | -5/Factory | Identified exit to Factory 19636 | -5/Factory | Build established: Scavenger-Skirmisher 19801 | -5/Factory | Identified exit to Garrison 19801 | -5/Factory | Entered Garrison 19801 | -5/Garrison | Accompanied by 1 ally 19826 | -5/Garrison | Triggered checkpoint 19860 | -5/Garrison | Garrison Relay disabled 19925 | -5/Garrison | Triggered checkpoint 19963 | -5/Garrison | Triggered checkpoint 20015 | -5/Garrison | Lost 6 parts (1p4n1u) 20031 | -5/Garrison | Destroyed 13 combat bots 20040 | -5/Garrison | Spotted B-75 Beast 20040 | -5/Garrison | Spotted B-75 Beast 20065 | -5/Garrison | Triggered checkpoint 20128 | -5/Garrison | Triggered checkpoint 20175 | -5/Garrison | Garrison Relay disabled 20200 | -5/Garrison | Discovered new exit (range 19) 20348 | -5/Garrison | Discovered new exit (range 11) 20369 | -5/Garrison | Expanded RIF knowledge: Autoassimilate 20400 | -5/Garrison | Build established: Bothacker-Skirmisher 20609 | -5/Garrison | Triggered checkpoint 20652 | -5/Garrison | Garrison Relay disabled 20711 | -5/Garrison | Entered Factory 20711 | -5/Factory | Accompanied by 3 allies 20756 | -5/Factory | Repaired Hrd. Medium Armor Plating 20795 | -5/Factory | Discovered exit to Factory (range 4) 20933 | -5/Factory | Discovered exit to Upper Caves (range 22) 21000 | -5/Factory | Build established: Botlord-Skirmisher 21528 | -5/Factory | Build established: Botlord-Mutant 21632 | -5/Factory | Incoming assault squad redirected 21634 | -5/Factory | Discovered exit to Factory (range 5) 22030 | -5/Factory | Garrison activated, responded to threat 22157 | -5/Factory | Discovered exit to Factory (range 5) 22372 | -5/Factory | Build established: Bothacker-Mutant 22636 | -5/Factory | Entered Extension 22636 | -5/Extension | Accompanied by 1 ally 22815 | -5/Extension | Rescued a captive Derelict 22885 | -5/Extension | Rescued a captive Derelict 22936 | -5/Extension | Rescued a captive Derelict 22982 | -5/Extension | Spotted B-75 Beast 23267 | -5/Extension | Incoming investigation squad redirected 23355 | -5/Extension | Rescued a captive Derelict 23388 | -5/Extension | Rescued a captive Derelict 23427 | -5/Extension | Rescued A7 23511 | -5/Extension | Rescued a captive Derelict 23578 | -5/Extension | Rescued a captive Derelict 23687 | -5/Extension | Discovered exit to Factory (range 10) 23689 | -5/Extension | Discovered new exit (range 6) 23731 | -5/Extension | Entered Cetus 23731 | -5/Cetus | Accompanied by 16 allies (A7) 23736 | -5/Cetus | Acquired a Cetus Manufacturing Module code from A7 23748 | -5/Cetus | Spotted Cetus Guard 23748 | -5/Cetus | Spotted Cetus Guard 23748 | -5/Cetus | Spotted Cetus Guard 23752 | -5/Cetus | Spotted Cetus Guard 23757 | -5/Cetus | Allies destroyed Cetus Guard 23758 | -5/Cetus | Allies destroyed Cetus Guard 23760 | -5/Cetus | Allies destroyed Cetus Guard 23764 | -5/Cetus | Allies destroyed Cetus Guard 23843 | -5/Cetus | Started Cetus Manufacturing Module 23868 | -5/Cetus | Manufactured an Enhanced Grunt 23893 | -5/Cetus | Manufactured an Enhanced Grunt 23918 | -5/Cetus | Manufactured an Enhanced Grunt 23919 | -5/Cetus | Destroyed A7 23924 | -5/Cetus | Extracted ID and sensor layout for unrecognized location from A7's data core 23943 | -5/Cetus | Manufactured an Enhanced Grunt 23968 | -5/Cetus | Manufactured an Enhanced Grunt 23970 | -5/Cetus | Discovered new exit (range 21) 23998 | -5/Cetus | Spotted Cetus Guard 23999 | -5/Cetus | Spotted Cetus Guard 24001 | -5/Cetus | Spotted Cetus Guard 24006 | -5/Cetus | Destroyed Cetus Guard 24007 | -5/Cetus | Spotted Cetus Guard 24013 | -5/Cetus | Allies destroyed Cetus Guard 24015 | -5/Cetus | Allies destroyed Cetus Guard 24018 | -5/Cetus | Discovered exit to Factory (range 22) 24021 | -5/Cetus | Allies destroyed Cetus Guard 24032 | -5/Cetus | Met Revision 17 24072 | -5/Cetus | Found Prototype Device 24072 | -5/Cetus | Identified Exp. Thermal Shield 24113 | -5/Cetus | Entered Archives 24113 | -5/Archives | Accompanied by 9 allies 24146 | -5/Archives | Discovered new exit (range 22) 24162 | -5/Archives | Discovered new exit (range 22) 24167 | -5/Archives | Discovered exit to Factory (range 21) 24313 | -5/Archives | Build established: Bothacker-Skirmisher 24369 | -5/Archives | Entered Hub_04(d) 24369 | -5/Hub_04(d) | Accompanied by 8 allies 24399 | -5/Hub_04(d) | Discovered exit to Factory (range 15) 24427 | -5/Hub_04(d) | Garrison activated, responded to threat 24473 | -5/Hub_04(d) | Discovered exit to Factory (range 18) 24602 | -5/Hub_04(d) | Network Hub disabled 24602 | -5/Hub_04(d) | Network Hub disabled 24602 | -5/Hub_04(d) | Destroyed B-75 Beast 24610 | -5/Hub_04(d) | Spotted Lightning 24650 | -5/Hub_04(d) | Identified exit to Garrison 24650 | -5/Hub_04(d) | Entered Garrison 24790 | -5/Garrison | Triggered checkpoint 24848 | -5/Garrison | Garrison Relay disabled 24905 | -5/Garrison | Triggered checkpoint 24918 | -5/Garrison | Triggered checkpoint 24943 | -5/Garrison | Destroyed 12 combat bots 25026 | -5/Garrison | Discovered exit to Factory (range 13) 25108 | -5/Garrison | Triggered checkpoint 25139 | -5/Garrison | Garrison Relay disabled 25250 | -5/Garrison | Triggered checkpoint 25294 | -5/Garrison | Discovered exit to Factory (range 10) 25330 | -5/Garrison | Triggered checkpoint 25438 | -5/Garrison | Triggered checkpoint 25496 | -5/Garrison | Discovered exit to Factory (range 9) 25513 | -5/Garrison | Expanded RIF knowledge: Signal Jamming 25749 | -5/Garrison | Entered Factory 25749 | -4/Factory | Evolved 2 slots: Utility x2 25817 | -4/Factory | Spotted B-86 Titan 26168 | -4/Factory | Build established: Botlord-Mutant 26206 | -4/Factory | System corruption reached 10% 26238 | -4/Factory | Repaired Centrium Medium Armor Plating 26287 | -4/Factory | Garrison activated, responded to threat 26382 | -4/Factory | Found Prototype Device 26383 | -4/Factory | Identified Exp. ECM Suite 26493 | -4/Factory | Discovered new exit (range 19) 26633 | -4/Factory | Local machine network offline 26705 | -4/Factory | Identified exit to Garrison 26705 | -4/Factory | Entered Garrison 26712 | -4/Garrison | Expanded RIF knowledge: Autooverride 26759 | -4/Garrison | Garrison Relay disabled 26760 | -4/Garrison | Triggered checkpoint 26872 | -4/Garrison | Triggered checkpoint 26882 | -4/Garrison | Spotted B-86 Titan 26908 | -4/Garrison | Triggered checkpoint 27023 | -4/Garrison | Triggered checkpoint 27078 | -4/Garrison | Destroyed B-86 Titan 27142 | -4/Garrison | Triggered checkpoint 27270 | -4/Garrison | Discovered new exit (range 10) 27310 | -4/Garrison | Triggered checkpoint 27348 | -4/Garrison | Garrison Relay disabled 27487 | -4/Garrison | Discovered new exit (range 9) 27514 | -4/Garrison | Triggered checkpoint 27551 | -4/Garrison | Garrison Relay disabled 27613 | -4/Garrison | Entered Research 27613 | -3/Research | Accompanied by 7 allies 27613 | -3/Research | Evolved 2 slots: Utility x2 27665 | -3/Research | Repaired Lrn. Phase Cannon 27717 | -3/Research | Identified exit to Armory 27717 | -3/Research | Identified exit to Quarantine 27813 | -3/Research | Revision forces began assault on 0b10 27886 | -3/Research | Met up with Revision 17++ 27969 | -3/Research | Found Exp. Thermal Shield 28026 | -3/Research | Spotted B-90 Cyclops 28132 | -3/Research | Found Prototype Processor 28132 | -3/Research | Identified Spectral Analyzer 28313 | -3/Research | Research terminal network offline 28393 | -3/Research | Spotted Executioner 28395 | -3/Research | Spotted Striker 28437 | -3/Research | Found Prototype Device 28437 | -3/Research | Identified Adv. Kinecellerator 28448 | -3/Research | Found Fusion Bomb Launcher 28573 | -3/Research | Spotted Striker 28573 | -3/Research | Spotted Executioner 28621 | -3/Research | Spotted B-86 Titan 28731 | -3/Research | Fabricated Lgt. Regenerative Plating (x1) 28732 | -3/Research | Local machine network offline 28765 | -3/Research | Destroyed B-86 Titan 29090 | -3/Research | Spotted Striker 29094 | -3/Research | Allies destroyed Striker 29169 | -3/Research | Entered Armory 29169 | -3/Armory | Accompanied by 4 allies 29361 | -3/Armory | Build established: Botlord-Skirmisher 29427 | -3/Armory | Incoming investigation squad redirected 29557 | -3/Armory | Identified exit to Research 29908 | -3/Armory | Local machine network offline 30021 | -3/Armory | Discovered new exit (range 3) 30189 | -3/Armory | Found Prototype Processor 30189 | -3/Armory | Identified Exp. Terrain Scan Processor 30195 | -3/Armory | Found Prototype Processor 30195 | -3/Armory | Identified Exp. Signal Interpreter 30225 | -3/Armory | Found Unknown Launcher 30225 | -3/Armory | Identified Gamma Bomb Array 30248 | -3/Armory | Assisted by bots powering up and referring to "LRC-V3" 30362 | -3/Armory | Entered Research 30362 | -2/Research | Accompanied by 14 allies 30362 | -2/Research | Evolved 2 slots: Utility x2 30417 | -2/Research | Found Prototype Processor 30417 | -2/Research | Identified Exp. Core Analyzer 30450 | -2/Research | Identified exit to Garrison 30460 | -2/Research | Entered Garrison 30460 | -2/Garrison | Accompanied by 14 allies 30504 | -2/Garrison | Triggered checkpoint 30536 | -2/Garrison | Garrison Relay disabled 30620 | -2/Garrison | Triggered checkpoint 30627 | -2/Garrison | Triggered checkpoint 30635 | -2/Garrison | Triggered checkpoint 30681 | -2/Garrison | Destroyed 9 combat bots 30714 | -2/Garrison | Discovered new exit (range 13) 30776 | -2/Garrison | Triggered checkpoint 30800 | -2/Garrison | Garrison Relay disabled 30924 | -2/Garrison | Discovered new exit (range 21) 30928 | -2/Garrison | Triggered checkpoint 31008 | -2/Garrison | Garrison Relay disabled 31262 | -2/Garrison | Discovered new exit (range 14) 31291 | -2/Garrison | Expanded RIF knowledge: Structural Interface 31300 | -2/Garrison | Entered Access 31300 | -1/Access | Accompanied by 8 allies 31300 | -1/Access | Evolved 2 slots: Utility x2 31322 | -1/Access | Build established: Botlord-Mutant 31413 | -1/Access | Identified exit to Garrison 31413 | -1/Access | Entered Garrison 31413 | -1/Garrison | Accompanied by 8 allies 31461 | -1/Garrison | Triggered checkpoint 31462 | -1/Garrison | Triggered checkpoint 31466 | -1/Garrison | Spotted B-99 Colossus 31471 | -1/Garrison | Triggered checkpoint 31479 | -1/Garrison | Triggered checkpoint 31622 | -1/Garrison | Triggered checkpoint 31631 | -1/Garrison | Garrison Relay disabled 31830 | -1/Garrison | Destroyed B-99 Colossus 31872 | -1/Garrison | Triggered checkpoint 31914 | -1/Garrison | Garrison Relay disabled 31937 | -1/Garrison | Discovered new exit (range 12) 32098 | -1/Garrison | Discovered new exit (range 9) 32116 | -1/Garrison | Expanded RIF knowledge: Threat Obfuscation 32144 | -1/Garrison | Triggered checkpoint 32172 | -1/Garrison | Garrison Relay disabled 32222 | -1/Garrison | Entered Access 32222 | -1/Access | Accompanied by 2 allies 33047 | -1/Access | Garrison activated, responded to threat 33179 | -1/Access | Spotted B-99 Colossus 33408 | -1/Access | Found Prototype Launcher 33408 | -1/Access | Identified Enh. Gamma Bomb Array 33620 | -1/Access | Incoming assault squad redirected 33822 | -1/Access | Garrison activated, responded to threat 33841 | -1/Access | Incoming assault squad redirected 34279 | -1/Access | Spotted B-99 Colossus 34314 | -1/Access | Build established: Botlord-Skirmisher 34494 | -1/Access | Maximum security lockdown engaged 34648 | -1/Access | System corruption reached 10% 34648 | -1/Access | Spotted Striker 34648 | -1/Access | Spotted Executioner 34649 | -1/Access | Self-destructed Last Messages --------------- 34564_ K-01 Serf collects debris. 34572_ Acquired 34 matter. 34573_ K-01 Serf collects debris. 34578_ System corrupted: Matter fused (-6). 34580_ ALERT: Suspicious intruders detected, dispatching Specialist reinforcements to area. 34590_ Jacked Y-72 Warden... >>disable_weapons Deactivating 2 weapon systems. 34594_ ALERT: Assault forces dispatched. 34595_ Y-72 Warden destroyed. 34609_ Acquired 26 matter. 34625_ JMLXMKDYTMV3WLHI>JCEMF|7GJ3H: 34647_ Centrium Wheel destroyed. 34648_ C-30 ARC bursts open, deploying its payload. 34648_ P-80 Master unfolds itself. 34648_ Striker unfolds itself. 34648_ Executioner unfolds itself. 34648_ M-36 Artificer unfolds itself. 34648_ Knocked back. Map ----- +----------------------------------------------------+ | #????????????????????????????????????? | | ###### #????????????????????????????????????? | | #########?? #????????????????????????????????????? | | #???#????????????????????????????????????? | | #????????????????????????????????????????? | | #????????????????????????????????????????? | | #????????????????????????????????????????? | | #????????#+#????????????????+##??????????? | | #???????? ???????????????? ????????? | | #???????? ???????????H???? ????????? | | ###+##+#####????? ???????????????? ?????????? | | #????? #???????????????? ?????????? | | +????? #???????????????? ?????????? | | "" #?????# ##############??? ????####### | | "" #?????# # #??? ???? | | """" #?????# # +??? ???# | | """" ####### # #???# #???# | | """" # # #???# #???# | | """" # %# #??## #???# | | """" # % # ##### ####?? | | "" + %+ # # #???? | | # # """ # ### #####?????! | | # %#% """S"" # #???????? | | #######"#### % +% " """ K# m #???????? | | #%% p/p ######### | | # %@ E#CpC #! | | #####Y######## +% | | #???# #????## #[ C | | #???# #?????# ######### | | #???# #?????## #???# | | #???# #??????# #???# | | ###################/#################???#!! | | #?????????????# =! #????????????#!! | | #?????????????# ! =! #????????????#! | | #?????????????#""" /! #????????????# | | #?????????????#"R #????????????# | | #?????????????#""" #????????????# | | #?????????????# "" #????????????###+# | | ???????????# #??????????????# # | | ????????# #??????????????# # | | #??????#= #??????????????# # | | #??????# *!! #??????????????# # | | #??????# =%! ##?????????????# # | | #??????# [= #?????????????# # | | #????#####/#########################+# | | ##### ?"""T""" # | | ????? """ """ # | | ????? # """S"" | | ?????? " + """ "" | | ??????? """" # | +----------------------------------------------------+ Best States ------------- Heat Dissipation 102 Energy Generation 61 Energy Capacity 630 Matter Stores 300 Matter Capacity 300 Sight Range 22 Robot Scan Range 14 Terrain Scan Density 1010 Jamming Range 12 Cloak Strength 5 Power Amplification 40 Armor Coverage 600 Resistance: KI 45 Resistance: TH 50 Resistance: EX 45 Resistance: EM 45 Resistance: I 20 Resistance: S 20 Resistance: P 20 Propulsion Shielding 33 Utility Shielding 66 Point Defense Rating 240 Weapon Cycling 25 Phase Shifting 15 Evasion (%) 55 Targeting Accuracy 8 Melee Accuracy 6 Core Analysis 8 Recoil Reduction 4 Particle Charging 30 Offensive Hacking 20 Defensive Hacking 10 Relay Coupler Types 6 Relay Coupler Value 127 Authchip Count 2 Item Schematics ----------------- Enh. Autogun | -7/Factory | Scanalyzed Imp. Utility Shielding | -7/Factory | Scanalyzed Adv. Beam Rifle | -7/Factory | Scanalyzed Imp. Cooling System | -7/Factory | Scanalyzed Adv. Plasma Cannon | -7/Factory | Hacked Combat Drone Bay | -7/Data Miner | Free Lgt. Regenerative Plating | -7/Data Miner | Free Biomechanical Wings | -7/Data Miner | Free Gravity Neutralizer | -7/Data Miner | Free Imp. Heavy Laser | -7/Data Miner | Free Arm. Medium Treads | -7/Data Miner | Free Imp. Component Analysis Suite | -7/Data Miner | Free Enh. Gauss Cannon | -7/Data Miner | Free Imp. Target Analyzer | -7/Data Miner | Free 0b10 Decoder Chip [Looter] | -6/Factory | Scanalyzed Enh. Optical Array | -6/Factory | Hacked Arm. Wheel | -6/Factory | Hacked Arm. Huge Wheel | -6/Factory | Hacked Enh. Nuclear Core | -6/Factory | Hacked Core Analyzer | -6/Factory | Scanalyzed Adv. Transmission Jammer | -6/Factory | Hacked Lyr. Medium Armor Plating | -5/Factory | Hacked Lyr. Heavy Armor Plating | -5/Factory | Hacked Neutrino Core | -5/Extension | Hacked Variable Charge Gun | -5/Extension | Hacked Adv. Weapon Cycler | -3/Armory | Hacked Enh. Quantum Rifle | -3/Armory | Hacked Rnf. Quantum Reactor | -3/Armory | Hacked Robot Schematics ------------------ S-27 Virus | -7/Data Miner | Free A-15 Conveyor | -7/Data Miner | Free B-48 Gladiator | -7/Data Miner | Free X-67 Chaingunner | -7/Data Miner | Free Fabricated ------------ Antimissile System | x2 | -6/Factory | Preloaded, Authchip Enh. Optical Array | x1 | -6/Factory | Authchip Lgt. Regenerative Plating | x1 | -3/Research | Authchip Alien Tech Used ----------------- None Achievements -------------- Beloved Pwned Shutout Challenges ------------ None Game ------ Seed CouplerBladePurifier Manual? 0 Play Time 05:31:35 Cumulative 106.2 hours Start 2022.04.18 @ 16:00:02 End 2022.04.19 @ 18:16:11 Sessions 9 Manual Loads 0 Difficulty Adventurer Special Mode None Game No. 37 Rogue 0 Adventurer 37 Explorer 0 Win Type - Total 7 Types 4/1/0/0/0/0/0/1/1 Lore% 80 Gallery% 71 Achievement% 65 Wizard Run 0 Options --------- ASCII 0 Keyboard 1 Movement Numpad Keybinds 0 Fullscreen 2 Font 18/SmallcapsGlow Map View 76x50 Tactical HUD 1 Map Filters NONE Filters NONE Steam 1 RUN: 02c978ea-8213-409d-b755-d538f2917a83